{"text_format":"3","workbook":"xlsx","n_sheets":2,"sheets":["Rozvrh hodín","Zoznam hodín"],"not_rendered":{"defined_names":17},"read":"whole","date_system":"1900"}

{"sheet":"Rozvrh hodín","index":0,"n_rows":56,"n_cols":9,"rows_kept":56,"merged":[[0,1,1,5],[0,8,1,8]]}
[null,"ROZVRH HODÍN",{"$nulls":4},"ZAČIATOK ROZVRHU","ČASOVÝ INTERVAL","Zoznam hodín"]
[{"$nulls":6},"08:00:00","15 min"]
[null,"ČAS","NEDEĽA","PONDELOK","UTOROK","STREDA","ŠTVRTOK","PIATOK","SOBOTA"]
[null,{"$f":"ZačiatokRozvrhu","v":"08:00:00"},{"$f":"IFERROR(INDEX(ZoznamHodín[],MATCH(SUMPRODUCT((ZoznamHodín[DEŇ]=RozvrhHodín[[#Headers],[NEDEĽA]])*(ROUNDDOWN($B4,10)>=ROUNDDOWN(ZoznamHodín[ČAS ZAČATIA],10))*($B4<=ZoznamHodín[ČAS UKONČENIA]),ZoznamHodín[JEDINEČNÉ]),ZoznamHodín[JEDINEČNÉ],0),2),0)","v":0},{"$f":"IFERROR(INDEX(ZoznamHodín[],MATCH(SUMPRODUCT((ZoznamHodín[DEŇ]=RozvrhHodín[[#Headers],[PONDELOK]])*(ROUNDDOWN($B4,10)>=ROUNDDOWN(ZoznamHodín[ČAS ZAČATIA],10))*($B4<=ZoznamHodín[ČAS UKONČENIA]),ZoznamHodín[JEDINEČNÉ]),ZoznamHodín[JEDINEČNÉ],0),2),0)","v":0},{"$f":"IFERROR(INDEX(ZoznamHodín[],MATCH(SUMPRODUCT((ZoznamHodín[DEŇ]=RozvrhHodín[[#Headers],[UTOROK]])*(ROUNDDOWN($B4,10)>=ROUNDDOWN(ZoznamHodín[ČAS ZAČATIA],10))*($B4<=ZoznamHodín[ČAS UKONČENIA]),ZoznamHodín[JEDINEČNÉ]),ZoznamHodín[JEDINEČNÉ],0),2),0)","v":0},{"$f":"IFERROR(INDEX(ZoznamHodín[],MATCH(SUMPRODUCT((ZoznamHodín[DEŇ]=RozvrhHodín[[#Headers],[STREDA]])*(ROUNDDOWN($B4,10)>=ROUNDDOWN(ZoznamHodín[ČAS ZAČATIA],10))*($B4<=ZoznamHodín[ČAS UKONČENIA]),ZoznamHodín[JEDINEČNÉ]),ZoznamHodín[JEDINEČNÉ],0),2),0)","v":0},{"$f":"IFERROR(INDEX(ZoznamHodín[],MATCH(SUMPRODUCT((ZoznamHodín[DEŇ]=RozvrhHodín[[#Headers],[ŠTVRTOK]])*(ROUNDDOWN($B4,10)>=ROUNDDOWN(ZoznamHodín[ČAS ZAČATIA],10))*($B4<=ZoznamHodín[ČAS UKONČENIA]),ZoznamHodín[JEDINEČNÉ]),ZoznamHodín[JEDINEČNÉ],0),2),0)","v":0},{"$f":"IFERROR(INDEX(ZoznamHodín[],MATCH(SUMPRODUCT((ZoznamHodín[DEŇ]=RozvrhHodín[[#Headers],[PIATOK]])*(ROUNDDOWN($B4,10)>=ROUNDDOWN(ZoznamHodín[ČAS ZAČATIA],10))*($B4<=ZoznamHodín[ČAS UKONČENIA]),ZoznamHodín[JEDINEČNÉ]),ZoznamHodín[JEDINEČNÉ],0),2),0)","v":0},{"$f":"IFERROR(INDEX(ZoznamHodín[],MATCH(SUMPRODUCT((ZoznamHodín[DEŇ]=RozvrhHodín[[#Headers],[SOBOTA]])*(ROUNDDOWN($B4,10)>=ROUNDDOWN(ZoznamHodín[ČAS ZAČATIA],10))*($B4<=ZoznamHodín[ČAS UKONČENIA]),ZoznamHodín[JEDINEČNÉ]),ZoznamHodín[JEDINEČNÉ],0),2),0)","v":0}]
[null,{"$f":"B4+Prírastok","v":"08:15:00"},{"$f":"IFERROR(INDEX(ZoznamHodín[],MATCH(SUMPRODUCT((ZoznamHodín[DEŇ]=RozvrhHodín[[#Headers],[NEDEĽA]])*(ROUNDDOWN($B5,10)>=ROUNDDOWN(ZoznamHodín[ČAS ZAČATIA],10))*($B5<=ZoznamHodín[ČAS UKONČENIA]),ZoznamHodín[JEDINEČNÉ]),ZoznamHodín[JEDINEČNÉ],0),2),0)","v":0},{"$f":"IFERROR(INDEX(ZoznamHodín[],MATCH(SUMPRODUCT((ZoznamHodín[DEŇ]=RozvrhHodín[[#Headers],[PONDELOK]])*(ROUNDDOWN($B5,10)>=ROUNDDOWN(ZoznamHodín[ČAS ZAČATIA],10))*($B5<=ZoznamHodín[ČAS UKONČENIA]),ZoznamHodín[JEDINEČNÉ]),ZoznamHodín[JEDINEČNÉ],0),2),0)","v":"MAT-113"},{"$f":"IFERROR(INDEX(ZoznamHodín[],MATCH(SUMPRODUCT((ZoznamHodín[DEŇ]=RozvrhHodín[[#Headers],[UTOROK]])*(ROUNDDOWN($B5,10)>=ROUNDDOWN(ZoznamHodín[ČAS ZAČATIA],10))*($B5<=ZoznamHodín[ČAS UKONČENIA]),ZoznamHodín[JEDINEČNÉ]),ZoznamHodín[JEDINEČNÉ],0),2),0)","v":0},{"$f":"IFERROR(INDEX(ZoznamHodín[],MATCH(SUMPRODUCT((ZoznamHodín[DEŇ]=RozvrhHodín[[#Headers],[STREDA]])*(ROUNDDOWN($B5,10)>=ROUNDDOWN(ZoznamHodín[ČAS ZAČATIA],10))*($B5<=ZoznamHodín[ČAS UKONČENIA]),ZoznamHodín[JEDINEČNÉ]),ZoznamHodín[JEDINEČNÉ],0),2),0)","v":"MAT-113"},{"$f":"IFERROR(INDEX(ZoznamHodín[],MATCH(SUMPRODUCT((ZoznamHodín[DEŇ]=RozvrhHodín[[#Headers],[ŠTVRTOK]])*(ROUNDDOWN($B5,10)>=ROUNDDOWN(ZoznamHodín[ČAS ZAČATIA],10))*($B5<=ZoznamHodín[ČAS UKONČENIA]),ZoznamHodín[JEDINEČNÉ]),ZoznamHodín[JEDINEČNÉ],0),2),0)","v":0},{"$f":"IFERROR(INDEX(ZoznamHodín[],MATCH(SUMPRODUCT((ZoznamHodín[DEŇ]=RozvrhHodín[[#Headers],[PIATOK]])*(ROUNDDOWN($B5,10)>=ROUNDDOWN(ZoznamHodín[ČAS ZAČATIA],10))*($B5<=ZoznamHodín[ČAS UKONČENIA]),ZoznamHodín[JEDINEČNÉ]),ZoznamHodín[JEDINEČNÉ],0),2),0)","v":"MAT-113"},{"$f":"IFERROR(INDEX(ZoznamHodín[],MATCH(SUMPRODUCT((ZoznamHodín[DEŇ]=RozvrhHodín[[#Headers],[SOBOTA]])*(ROUNDDOWN($B5,10)>=ROUNDDOWN(ZoznamHodín[ČAS ZAČATIA],10))*($B5<=ZoznamHodín[ČAS UKONČENIA]),ZoznamHodín[JEDINEČNÉ]),ZoznamHodín[JEDINEČNÉ],0),2),0)","v":0}]
[null,"08:30:00",{"$f":"IFERROR(INDEX(ZoznamHodín[],MATCH(SUMPRODUCT((ZoznamHodín[DEŇ]=RozvrhHodín[[#Headers],[NEDEĽA]])*(ROUNDDOWN($B6,10)>=ROUNDDOWN(ZoznamHodín[ČAS ZAČATIA],10))*($B6<=ZoznamHodín[ČAS UKONČENIA]),ZoznamHodín[JEDINEČNÉ]),ZoznamHodín[JEDINEČNÉ],0),2),0)","v":0},{"$f":"IFERROR(INDEX(ZoznamHodín[],MATCH(SUMPRODUCT((ZoznamHodín[DEŇ]=RozvrhHodín[[#Headers],[PONDELOK]])*(ROUNDDOWN($B6,10)>=ROUNDDOWN(ZoznamHodín[ČAS ZAČATIA],10))*($B6<=ZoznamHodín[ČAS UKONČENIA]),ZoznamHodín[JEDINEČNÉ]),ZoznamHodín[JEDINEČNÉ],0),2),0)","v":"MAT-113"},{"$f":"IFERROR(INDEX(ZoznamHodín[],MATCH(SUMPRODUCT((ZoznamHodín[DEŇ]=RozvrhHodín[[#Headers],[UTOROK]])*(ROUNDDOWN($B6,10)>=ROUNDDOWN(ZoznamHodín[ČAS ZAČATIA],10))*($B6<=ZoznamHodín[ČAS UKONČENIA]),ZoznamHodín[JEDINEČNÉ]),ZoznamHodín[JEDINEČNÉ],0),2),0)","v":0},{"$f":"IFERROR(INDEX(ZoznamHodín[],MATCH(SUMPRODUCT((ZoznamHodín[DEŇ]=RozvrhHodín[[#Headers],[STREDA]])*(ROUNDDOWN($B6,10)>=ROUNDDOWN(ZoznamHodín[ČAS ZAČATIA],10))*($B6<=ZoznamHodín[ČAS UKONČENIA]),ZoznamHodín[JEDINEČNÉ]),ZoznamHodín[JEDINEČNÉ],0),2),0)","v":"MAT-113"},{"$f":"IFERROR(INDEX(ZoznamHodín[],MATCH(SUMPRODUCT((ZoznamHodín[DEŇ]=RozvrhHodín[[#Headers],[ŠTVRTOK]])*(ROUNDDOWN($B6,10)>=ROUNDDOWN(ZoznamHodín[ČAS ZAČATIA],10))*($B6<=ZoznamHodín[ČAS UKONČENIA]),ZoznamHodín[JEDINEČNÉ]),ZoznamHodín[JEDINEČNÉ],0),2),0)","v":0},{"$f":"IFERROR(INDEX(ZoznamHodín[],MATCH(SUMPRODUCT((ZoznamHodín[DEŇ]=RozvrhHodín[[#Headers],[PIATOK]])*(ROUNDDOWN($B6,10)>=ROUNDDOWN(ZoznamHodín[ČAS ZAČATIA],10))*($B6<=ZoznamHodín[ČAS UKONČENIA]),ZoznamHodín[JEDINEČNÉ]),ZoznamHodín[JEDINEČNÉ],0),2),0)","v":"MAT-113"},{"$f":"IFERROR(INDEX(ZoznamHodín[],MATCH(SUMPRODUCT((ZoznamHodín[DEŇ]=RozvrhHodín[[#Headers],[SOBOTA]])*(ROUNDDOWN($B6,10)>=ROUNDDOWN(ZoznamHodín[ČAS ZAČATIA],10))*($B6<=ZoznamHodín[ČAS UKONČENIA]),ZoznamHodín[JEDINEČNÉ]),ZoznamHodín[JEDINEČNÉ],0),2),0)","v":0}]
[null,"08:45:00",{"$f":"IFERROR(INDEX(ZoznamHodín[],MATCH(SUMPRODUCT((ZoznamHodín[DEŇ]=RozvrhHodín[[#Headers],[NEDEĽA]])*(ROUNDDOWN($B7,10)>=ROUNDDOWN(ZoznamHodín[ČAS ZAČATIA],10))*($B7<=ZoznamHodín[ČAS UKONČENIA]),ZoznamHodín[JEDINEČNÉ]),ZoznamHodín[JEDINEČNÉ],0),2),0)","v":0},{"$f":"IFERROR(INDEX(ZoznamHodín[],MATCH(SUMPRODUCT((ZoznamHodín[DEŇ]=RozvrhHodín[[#Headers],[PONDELOK]])*(ROUNDDOWN($B7,10)>=ROUNDDOWN(ZoznamHodín[ČAS ZAČATIA],10))*($B7<=ZoznamHodín[ČAS UKONČENIA]),ZoznamHodín[JEDINEČNÉ]),ZoznamHodín[JEDINEČNÉ],0),2),0)","v":"MAT-113"},{"$f":"IFERROR(INDEX(ZoznamHodín[],MATCH(SUMPRODUCT((ZoznamHodín[DEŇ]=RozvrhHodín[[#Headers],[UTOROK]])*(ROUNDDOWN($B7,10)>=ROUNDDOWN(ZoznamHodín[ČAS ZAČATIA],10))*($B7<=ZoznamHodín[ČAS UKONČENIA]),ZoznamHodín[JEDINEČNÉ]),ZoznamHodín[JEDINEČNÉ],0),2),0)","v":0},{"$f":"IFERROR(INDEX(ZoznamHodín[],MATCH(SUMPRODUCT((ZoznamHodín[DEŇ]=RozvrhHodín[[#Headers],[STREDA]])*(ROUNDDOWN($B7,10)>=ROUNDDOWN(ZoznamHodín[ČAS ZAČATIA],10))*($B7<=ZoznamHodín[ČAS UKONČENIA]),ZoznamHodín[JEDINEČNÉ]),ZoznamHodín[JEDINEČNÉ],0),2),0)","v":"MAT-113"},{"$f":"IFERROR(INDEX(ZoznamHodín[],MATCH(SUMPRODUCT((ZoznamHodín[DEŇ]=RozvrhHodín[[#Headers],[ŠTVRTOK]])*(ROUNDDOWN($B7,10)>=ROUNDDOWN(ZoznamHodín[ČAS ZAČATIA],10))*($B7<=ZoznamHodín[ČAS UKONČENIA]),ZoznamHodín[JEDINEČNÉ]),ZoznamHodín[JEDINEČNÉ],0),2),0)","v":0},{"$f":"IFERROR(INDEX(ZoznamHodín[],MATCH(SUMPRODUCT((ZoznamHodín[DEŇ]=RozvrhHodín[[#Headers],[PIATOK]])*(ROUNDDOWN($B7,10)>=ROUNDDOWN(ZoznamHodín[ČAS ZAČATIA],10))*($B7<=ZoznamHodín[ČAS UKONČENIA]),ZoznamHodín[JEDINEČNÉ]),ZoznamHodín[JEDINEČNÉ],0),2),0)","v":"MAT-113"},{"$f":"IFERROR(INDEX(ZoznamHodín[],MATCH(SUMPRODUCT((ZoznamHodín[DEŇ]=RozvrhHodín[[#Headers],[SOBOTA]])*(ROUNDDOWN($B7,10)>=ROUNDDOWN(ZoznamHodín[ČAS ZAČATIA],10))*($B7<=ZoznamHodín[ČAS UKONČENIA]),ZoznamHodín[JEDINEČNÉ]),ZoznamHodín[JEDINEČNÉ],0),2),0)","v":0}]
[null,"09:00:00",{"$f":"IFERROR(INDEX(ZoznamHodín[],MATCH(SUMPRODUCT((ZoznamHodín[DEŇ]=RozvrhHodín[[#Headers],[NEDEĽA]])*(ROUNDDOWN($B8,10)>=ROUNDDOWN(ZoznamHodín[ČAS ZAČATIA],10))*($B8<=ZoznamHodín[ČAS UKONČENIA]),ZoznamHodín[JEDINEČNÉ]),ZoznamHodín[JEDINEČNÉ],0),2),0)","v":0},{"$f":"IFERROR(INDEX(ZoznamHodín[],MATCH(SUMPRODUCT((ZoznamHodín[DEŇ]=RozvrhHodín[[#Headers],[PONDELOK]])*(ROUNDDOWN($B8,10)>=ROUNDDOWN(ZoznamHodín[ČAS ZAČATIA],10))*($B8<=ZoznamHodín[ČAS UKONČENIA]),ZoznamHodín[JEDINEČNÉ]),ZoznamHodín[JEDINEČNÉ],0),2),0)","v":"MAT-113"},{"$f":"IFERROR(INDEX(ZoznamHodín[],MATCH(SUMPRODUCT((ZoznamHodín[DEŇ]=RozvrhHodín[[#Headers],[UTOROK]])*(ROUNDDOWN($B8,10)>=ROUNDDOWN(ZoznamHodín[ČAS ZAČATIA],10))*($B8<=ZoznamHodín[ČAS UKONČENIA]),ZoznamHodín[JEDINEČNÉ]),ZoznamHodín[JEDINEČNÉ],0),2),0)","v":0},{"$f":"IFERROR(INDEX(ZoznamHodín[],MATCH(SUMPRODUCT((ZoznamHodín[DEŇ]=RozvrhHodín[[#Headers],[STREDA]])*(ROUNDDOWN($B8,10)>=ROUNDDOWN(ZoznamHodín[ČAS ZAČATIA],10))*($B8<=ZoznamHodín[ČAS UKONČENIA]),ZoznamHodín[JEDINEČNÉ]),ZoznamHodín[JEDINEČNÉ],0),2),0)","v":"MAT-113"},{"$f":"IFERROR(INDEX(ZoznamHodín[],MATCH(SUMPRODUCT((ZoznamHodín[DEŇ]=RozvrhHodín[[#Headers],[ŠTVRTOK]])*(ROUNDDOWN($B8,10)>=ROUNDDOWN(ZoznamHodín[ČAS ZAČATIA],10))*($B8<=ZoznamHodín[ČAS UKONČENIA]),ZoznamHodín[JEDINEČNÉ]),ZoznamHodín[JEDINEČNÉ],0),2),0)","v":0},{"$f":"IFERROR(INDEX(ZoznamHodín[],MATCH(SUMPRODUCT((ZoznamHodín[DEŇ]=RozvrhHodín[[#Headers],[PIATOK]])*(ROUNDDOWN($B8,10)>=ROUNDDOWN(ZoznamHodín[ČAS ZAČATIA],10))*($B8<=ZoznamHodín[ČAS UKONČENIA]),ZoznamHodín[JEDINEČNÉ]),ZoznamHodín[JEDINEČNÉ],0),2),0)","v":"MAT-113"},{"$f":"IFERROR(INDEX(ZoznamHodín[],MATCH(SUMPRODUCT((ZoznamHodín[DEŇ]=RozvrhHodín[[#Headers],[SOBOTA]])*(ROUNDDOWN($B8,10)>=ROUNDDOWN(ZoznamHodín[ČAS ZAČATIA],10))*($B8<=ZoznamHodín[ČAS UKONČENIA]),ZoznamHodín[JEDINEČNÉ]),ZoznamHodín[JEDINEČNÉ],0),2),0)","v":0}]
[null,"09:15:00",{"$f":"IFERROR(INDEX(ZoznamHodín[],MATCH(SUMPRODUCT((ZoznamHodín[DEŇ]=RozvrhHodín[[#Headers],[NEDEĽA]])*(ROUNDDOWN($B9,10)>=ROUNDDOWN(ZoznamHodín[ČAS ZAČATIA],10))*($B9<=ZoznamHodín[ČAS UKONČENIA]),ZoznamHodín[JEDINEČNÉ]),ZoznamHodín[JEDINEČNÉ],0),2),0)","v":0},{"$f":"IFERROR(INDEX(ZoznamHodín[],MATCH(SUMPRODUCT((ZoznamHodín[DEŇ]=RozvrhHodín[[#Headers],[PONDELOK]])*(ROUNDDOWN($B9,10)>=ROUNDDOWN(ZoznamHodín[ČAS ZAČATIA],10))*($B9<=ZoznamHodín[ČAS UKONČENIA]),ZoznamHodín[JEDINEČNÉ]),ZoznamHodín[JEDINEČNÉ],0),2),0)","v":"MAT-113"},{"$f":"IFERROR(INDEX(ZoznamHodín[],MATCH(SUMPRODUCT((ZoznamHodín[DEŇ]=RozvrhHodín[[#Headers],[UTOROK]])*(ROUNDDOWN($B9,10)>=ROUNDDOWN(ZoznamHodín[ČAS ZAČATIA],10))*($B9<=ZoznamHodín[ČAS UKONČENIA]),ZoznamHodín[JEDINEČNÉ]),ZoznamHodín[JEDINEČNÉ],0),2),0)","v":0},{"$f":"IFERROR(INDEX(ZoznamHodín[],MATCH(SUMPRODUCT((ZoznamHodín[DEŇ]=RozvrhHodín[[#Headers],[STREDA]])*(ROUNDDOWN($B9,10)>=ROUNDDOWN(ZoznamHodín[ČAS ZAČATIA],10))*($B9<=ZoznamHodín[ČAS UKONČENIA]),ZoznamHodín[JEDINEČNÉ]),ZoznamHodín[JEDINEČNÉ],0),2),0)","v":"MAT-113"},{"$f":"IFERROR(INDEX(ZoznamHodín[],MATCH(SUMPRODUCT((ZoznamHodín[DEŇ]=RozvrhHodín[[#Headers],[ŠTVRTOK]])*(ROUNDDOWN($B9,10)>=ROUNDDOWN(ZoznamHodín[ČAS ZAČATIA],10))*($B9<=ZoznamHodín[ČAS UKONČENIA]),ZoznamHodín[JEDINEČNÉ]),ZoznamHodín[JEDINEČNÉ],0),2),0)","v":0},{"$f":"IFERROR(INDEX(ZoznamHodín[],MATCH(SUMPRODUCT((ZoznamHodín[DEŇ]=RozvrhHodín[[#Headers],[PIATOK]])*(ROUNDDOWN($B9,10)>=ROUNDDOWN(ZoznamHodín[ČAS ZAČATIA],10))*($B9<=ZoznamHodín[ČAS UKONČENIA]),ZoznamHodín[JEDINEČNÉ]),ZoznamHodín[JEDINEČNÉ],0),2),0)","v":"MAT-113"},{"$f":"IFERROR(INDEX(ZoznamHodín[],MATCH(SUMPRODUCT((ZoznamHodín[DEŇ]=RozvrhHodín[[#Headers],[SOBOTA]])*(ROUNDDOWN($B9,10)>=ROUNDDOWN(ZoznamHodín[ČAS ZAČATIA],10))*($B9<=ZoznamHodín[ČAS UKONČENIA]),ZoznamHodín[JEDINEČNÉ]),ZoznamHodín[JEDINEČNÉ],0),2),0)","v":0}]
[null,"09:30:00",{"$f":"IFERROR(INDEX(ZoznamHodín[],MATCH(SUMPRODUCT((ZoznamHodín[DEŇ]=RozvrhHodín[[#Headers],[NEDEĽA]])*(ROUNDDOWN($B10,10)>=ROUNDDOWN(ZoznamHodín[ČAS ZAČATIA],10))*($B10<=ZoznamHodín[ČAS UKONČENIA]),ZoznamHodín[JEDINEČNÉ]),ZoznamHodín[JEDINEČNÉ],0),2),0)","v":0},{"$f":"IFERROR(INDEX(ZoznamHodín[],MATCH(SUMPRODUCT((ZoznamHodín[DEŇ]=RozvrhHodín[[#Headers],[PONDELOK]])*(ROUNDDOWN($B10,10)>=ROUNDDOWN(ZoznamHodín[ČAS ZAČATIA],10))*($B10<=ZoznamHodín[ČAS UKONČENIA]),ZoznamHodín[JEDINEČNÉ]),ZoznamHodín[JEDINEČNÉ],0),2),0)","v":0},{"$f":"IFERROR(INDEX(ZoznamHodín[],MATCH(SUMPRODUCT((ZoznamHodín[DEŇ]=RozvrhHodín[[#Headers],[UTOROK]])*(ROUNDDOWN($B10,10)>=ROUNDDOWN(ZoznamHodín[ČAS ZAČATIA],10))*($B10<=ZoznamHodín[ČAS UKONČENIA]),ZoznamHodín[JEDINEČNÉ]),ZoznamHodín[JEDINEČNÉ],0),2),0)","v":0},{"$f":"IFERROR(INDEX(ZoznamHodín[],MATCH(SUMPRODUCT((ZoznamHodín[DEŇ]=RozvrhHodín[[#Headers],[STREDA]])*(ROUNDDOWN($B10,10)>=ROUNDDOWN(ZoznamHodín[ČAS ZAČATIA],10))*($B10<=ZoznamHodín[ČAS UKONČENIA]),ZoznamHodín[JEDINEČNÉ]),ZoznamHodín[JEDINEČNÉ],0),2),0)","v":0},{"$f":"IFERROR(INDEX(ZoznamHodín[],MATCH(SUMPRODUCT((ZoznamHodín[DEŇ]=RozvrhHodín[[#Headers],[ŠTVRTOK]])*(ROUNDDOWN($B10,10)>=ROUNDDOWN(ZoznamHodín[ČAS ZAČATIA],10))*($B10<=ZoznamHodín[ČAS UKONČENIA]),ZoznamHodín[JEDINEČNÉ]),ZoznamHodín[JEDINEČNÉ],0),2),0)","v":0},{"$f":"IFERROR(INDEX(ZoznamHodín[],MATCH(SUMPRODUCT((ZoznamHodín[DEŇ]=RozvrhHodín[[#Headers],[PIATOK]])*(ROUNDDOWN($B10,10)>=ROUNDDOWN(ZoznamHodín[ČAS ZAČATIA],10))*($B10<=ZoznamHodín[ČAS UKONČENIA]),ZoznamHodín[JEDINEČNÉ]),ZoznamHodín[JEDINEČNÉ],0),2),0)","v":0},{"$f":"IFERROR(INDEX(ZoznamHodín[],MATCH(SUMPRODUCT((ZoznamHodín[DEŇ]=RozvrhHodín[[#Headers],[SOBOTA]])*(ROUNDDOWN($B10,10)>=ROUNDDOWN(ZoznamHodín[ČAS ZAČATIA],10))*($B10<=ZoznamHodín[ČAS UKONČENIA]),ZoznamHodín[JEDINEČNÉ]),ZoznamHodín[JEDINEČNÉ],0),2),0)","v":0}]
[null,"09:45:00",{"$f":"IFERROR(INDEX(ZoznamHodín[],MATCH(SUMPRODUCT((ZoznamHodín[DEŇ]=RozvrhHodín[[#Headers],[NEDEĽA]])*(ROUNDDOWN($B11,10)>=ROUNDDOWN(ZoznamHodín[ČAS ZAČATIA],10))*($B11<=ZoznamHodín[ČAS UKONČENIA]),ZoznamHodín[JEDINEČNÉ]),ZoznamHodín[JEDINEČNÉ],0),2),0)","v":0},{"$f":"IFERROR(INDEX(ZoznamHodín[],MATCH(SUMPRODUCT((ZoznamHodín[DEŇ]=RozvrhHodín[[#Headers],[PONDELOK]])*(ROUNDDOWN($B11,10)>=ROUNDDOWN(ZoznamHodín[ČAS ZAČATIA],10))*($B11<=ZoznamHodín[ČAS UKONČENIA]),ZoznamHodín[JEDINEČNÉ]),ZoznamHodín[JEDINEČNÉ],0),2),0)","v":0},{"$f":"IFERROR(INDEX(ZoznamHodín[],MATCH(SUMPRODUCT((ZoznamHodín[DEŇ]=RozvrhHodín[[#Headers],[UTOROK]])*(ROUNDDOWN($B11,10)>=ROUNDDOWN(ZoznamHodín[ČAS ZAČATIA],10))*($B11<=ZoznamHodín[ČAS UKONČENIA]),ZoznamHodín[JEDINEČNÉ]),ZoznamHodín[JEDINEČNÉ],0),2),0)","v":0},{"$f":"IFERROR(INDEX(ZoznamHodín[],MATCH(SUMPRODUCT((ZoznamHodín[DEŇ]=RozvrhHodín[[#Headers],[STREDA]])*(ROUNDDOWN($B11,10)>=ROUNDDOWN(ZoznamHodín[ČAS ZAČATIA],10))*($B11<=ZoznamHodín[ČAS UKONČENIA]),ZoznamHodín[JEDINEČNÉ]),ZoznamHodín[JEDINEČNÉ],0),2),0)","v":0},{"$f":"IFERROR(INDEX(ZoznamHodín[],MATCH(SUMPRODUCT((ZoznamHodín[DEŇ]=RozvrhHodín[[#Headers],[ŠTVRTOK]])*(ROUNDDOWN($B11,10)>=ROUNDDOWN(ZoznamHodín[ČAS ZAČATIA],10))*($B11<=ZoznamHodín[ČAS UKONČENIA]),ZoznamHodín[JEDINEČNÉ]),ZoznamHodín[JEDINEČNÉ],0),2),0)","v":0},{"$f":"IFERROR(INDEX(ZoznamHodín[],MATCH(SUMPRODUCT((ZoznamHodín[DEŇ]=RozvrhHodín[[#Headers],[PIATOK]])*(ROUNDDOWN($B11,10)>=ROUNDDOWN(ZoznamHodín[ČAS ZAČATIA],10))*($B11<=ZoznamHodín[ČAS UKONČENIA]),ZoznamHodín[JEDINEČNÉ]),ZoznamHodín[JEDINEČNÉ],0),2),0)","v":0},{"$f":"IFERROR(INDEX(ZoznamHodín[],MATCH(SUMPRODUCT((ZoznamHodín[DEŇ]=RozvrhHodín[[#Headers],[SOBOTA]])*(ROUNDDOWN($B11,10)>=ROUNDDOWN(ZoznamHodín[ČAS ZAČATIA],10))*($B11<=ZoznamHodín[ČAS UKONČENIA]),ZoznamHodín[JEDINEČNÉ]),ZoznamHodín[JEDINEČNÉ],0),2),0)","v":0}]
[null,{"$f":"B11+Prírastok","v":"10:00:00"},{"$f":"IFERROR(INDEX(ZoznamHodín[],MATCH(SUMPRODUCT((ZoznamHodín[DEŇ]=RozvrhHodín[[#Headers],[NEDEĽA]])*(ROUNDDOWN($B12,10)>=ROUNDDOWN(ZoznamHodín[ČAS ZAČATIA],10))*($B12<=ZoznamHodín[ČAS UKONČENIA]),ZoznamHodín[JEDINEČNÉ]),ZoznamHodín[JEDINEČNÉ],0),2),0)","v":0},{"$f":"IFERROR(INDEX(ZoznamHodín[],MATCH(SUMPRODUCT((ZoznamHodín[DEŇ]=RozvrhHodín[[#Headers],[PONDELOK]])*(ROUNDDOWN($B12,10)>=ROUNDDOWN(ZoznamHodín[ČAS ZAČATIA],10))*($B12<=ZoznamHodín[ČAS UKONČENIA]),ZoznamHodín[JEDINEČNÉ]),ZoznamHodín[JEDINEČNÉ],0),2),0)","v":0},{"$f":"IFERROR(INDEX(ZoznamHodín[],MATCH(SUMPRODUCT((ZoznamHodín[DEŇ]=RozvrhHodín[[#Headers],[UTOROK]])*(ROUNDDOWN($B12,10)>=ROUNDDOWN(ZoznamHodín[ČAS ZAČATIA],10))*($B12<=ZoznamHodín[ČAS UKONČENIA]),ZoznamHodín[JEDINEČNÉ]),ZoznamHodín[JEDINEČNÉ],0),2),0)","v":0},{"$f":"IFERROR(INDEX(ZoznamHodín[],MATCH(SUMPRODUCT((ZoznamHodín[DEŇ]=RozvrhHodín[[#Headers],[STREDA]])*(ROUNDDOWN($B12,10)>=ROUNDDOWN(ZoznamHodín[ČAS ZAČATIA],10))*($B12<=ZoznamHodín[ČAS UKONČENIA]),ZoznamHodín[JEDINEČNÉ]),ZoznamHodín[JEDINEČNÉ],0),2),0)","v":0},{"$f":"IFERROR(INDEX(ZoznamHodín[],MATCH(SUMPRODUCT((ZoznamHodín[DEŇ]=RozvrhHodín[[#Headers],[ŠTVRTOK]])*(ROUNDDOWN($B12,10)>=ROUNDDOWN(ZoznamHodín[ČAS ZAČATIA],10))*($B12<=ZoznamHodín[ČAS UKONČENIA]),ZoznamHodín[JEDINEČNÉ]),ZoznamHodín[JEDINEČNÉ],0),2),0)","v":0},{"$f":"IFERROR(INDEX(ZoznamHodín[],MATCH(SUMPRODUCT((ZoznamHodín[DEŇ]=RozvrhHodín[[#Headers],[PIATOK]])*(ROUNDDOWN($B12,10)>=ROUNDDOWN(ZoznamHodín[ČAS ZAČATIA],10))*($B12<=ZoznamHodín[ČAS UKONČENIA]),ZoznamHodín[JEDINEČNÉ]),ZoznamHodín[JEDINEČNÉ],0),2),0)","v":0},{"$f":"IFERROR(INDEX(ZoznamHodín[],MATCH(SUMPRODUCT((ZoznamHodín[DEŇ]=RozvrhHodín[[#Headers],[SOBOTA]])*(ROUNDDOWN($B12,10)>=ROUNDDOWN(ZoznamHodín[ČAS ZAČATIA],10))*($B12<=ZoznamHodín[ČAS UKONČENIA]),ZoznamHodín[JEDINEČNÉ]),ZoznamHodín[JEDINEČNÉ],0),2),0)","v":0}]
[null,"10:15:00",{"$f":"IFERROR(INDEX(ZoznamHodín[],MATCH(SUMPRODUCT((ZoznamHodín[DEŇ]=RozvrhHodín[[#Headers],[NEDEĽA]])*(ROUNDDOWN($B13,10)>=ROUNDDOWN(ZoznamHodín[ČAS ZAČATIA],10))*($B13<=ZoznamHodín[ČAS UKONČENIA]),ZoznamHodín[JEDINEČNÉ]),ZoznamHodín[JEDINEČNÉ],0),2),0)","v":0},{"$f":"IFERROR(INDEX(ZoznamHodín[],MATCH(SUMPRODUCT((ZoznamHodín[DEŇ]=RozvrhHodín[[#Headers],[PONDELOK]])*(ROUNDDOWN($B13,10)>=ROUNDDOWN(ZoznamHodín[ČAS ZAČATIA],10))*($B13<=ZoznamHodín[ČAS UKONČENIA]),ZoznamHodín[JEDINEČNÉ]),ZoznamHodín[JEDINEČNÉ],0),2),0)","v":0},{"$f":"IFERROR(INDEX(ZoznamHodín[],MATCH(SUMPRODUCT((ZoznamHodín[DEŇ]=RozvrhHodín[[#Headers],[UTOROK]])*(ROUNDDOWN($B13,10)>=ROUNDDOWN(ZoznamHodín[ČAS ZAČATIA],10))*($B13<=ZoznamHodín[ČAS UKONČENIA]),ZoznamHodín[JEDINEČNÉ]),ZoznamHodín[JEDINEČNÉ],0),2),0)","v":0},{"$f":"IFERROR(INDEX(ZoznamHodín[],MATCH(SUMPRODUCT((ZoznamHodín[DEŇ]=RozvrhHodín[[#Headers],[STREDA]])*(ROUNDDOWN($B13,10)>=ROUNDDOWN(ZoznamHodín[ČAS ZAČATIA],10))*($B13<=ZoznamHodín[ČAS UKONČENIA]),ZoznamHodín[JEDINEČNÉ]),ZoznamHodín[JEDINEČNÉ],0),2),0)","v":0},{"$f":"IFERROR(INDEX(ZoznamHodín[],MATCH(SUMPRODUCT((ZoznamHodín[DEŇ]=RozvrhHodín[[#Headers],[ŠTVRTOK]])*(ROUNDDOWN($B13,10)>=ROUNDDOWN(ZoznamHodín[ČAS ZAČATIA],10))*($B13<=ZoznamHodín[ČAS UKONČENIA]),ZoznamHodín[JEDINEČNÉ]),ZoznamHodín[JEDINEČNÉ],0),2),0)","v":0},{"$f":"IFERROR(INDEX(ZoznamHodín[],MATCH(SUMPRODUCT((ZoznamHodín[DEŇ]=RozvrhHodín[[#Headers],[PIATOK]])*(ROUNDDOWN($B13,10)>=ROUNDDOWN(ZoznamHodín[ČAS ZAČATIA],10))*($B13<=ZoznamHodín[ČAS UKONČENIA]),ZoznamHodín[JEDINEČNÉ]),ZoznamHodín[JEDINEČNÉ],0),2),0)","v":0},{"$f":"IFERROR(INDEX(ZoznamHodín[],MATCH(SUMPRODUCT((ZoznamHodín[DEŇ]=RozvrhHodín[[#Headers],[SOBOTA]])*(ROUNDDOWN($B13,10)>=ROUNDDOWN(ZoznamHodín[ČAS ZAČATIA],10))*($B13<=ZoznamHodín[ČAS UKONČENIA]),ZoznamHodín[JEDINEČNÉ]),ZoznamHodín[JEDINEČNÉ],0),2),0)","v":0}]
[null,"10:30:00",{"$f":"IFERROR(INDEX(ZoznamHodín[],MATCH(SUMPRODUCT((ZoznamHodín[DEŇ]=RozvrhHodín[[#Headers],[NEDEĽA]])*(ROUNDDOWN($B14,10)>=ROUNDDOWN(ZoznamHodín[ČAS ZAČATIA],10))*($B14<=ZoznamHodín[ČAS UKONČENIA]),ZoznamHodín[JEDINEČNÉ]),ZoznamHodín[JEDINEČNÉ],0),2),0)","v":0},{"$f":"IFERROR(INDEX(ZoznamHodín[],MATCH(SUMPRODUCT((ZoznamHodín[DEŇ]=RozvrhHodín[[#Headers],[PONDELOK]])*(ROUNDDOWN($B14,10)>=ROUNDDOWN(ZoznamHodín[ČAS ZAČATIA],10))*($B14<=ZoznamHodín[ČAS UKONČENIA]),ZoznamHodín[JEDINEČNÉ]),ZoznamHodín[JEDINEČNÉ],0),2),0)","v":0},{"$f":"IFERROR(INDEX(ZoznamHodín[],MATCH(SUMPRODUCT((ZoznamHodín[DEŇ]=RozvrhHodín[[#Headers],[UTOROK]])*(ROUNDDOWN($B14,10)>=ROUNDDOWN(ZoznamHodín[ČAS ZAČATIA],10))*($B14<=ZoznamHodín[ČAS UKONČENIA]),ZoznamHodín[JEDINEČNÉ]),ZoznamHodín[JEDINEČNÉ],0),2),0)","v":0},{"$f":"IFERROR(INDEX(ZoznamHodín[],MATCH(SUMPRODUCT((ZoznamHodín[DEŇ]=RozvrhHodín[[#Headers],[STREDA]])*(ROUNDDOWN($B14,10)>=ROUNDDOWN(ZoznamHodín[ČAS ZAČATIA],10))*($B14<=ZoznamHodín[ČAS UKONČENIA]),ZoznamHodín[JEDINEČNÉ]),ZoznamHodín[JEDINEČNÉ],0),2),0)","v":0},{"$f":"IFERROR(INDEX(ZoznamHodín[],MATCH(SUMPRODUCT((ZoznamHodín[DEŇ]=RozvrhHodín[[#Headers],[ŠTVRTOK]])*(ROUNDDOWN($B14,10)>=ROUNDDOWN(ZoznamHodín[ČAS ZAČATIA],10))*($B14<=ZoznamHodín[ČAS UKONČENIA]),ZoznamHodín[JEDINEČNÉ]),ZoznamHodín[JEDINEČNÉ],0),2),0)","v":0},{"$f":"IFERROR(INDEX(ZoznamHodín[],MATCH(SUMPRODUCT((ZoznamHodín[DEŇ]=RozvrhHodín[[#Headers],[PIATOK]])*(ROUNDDOWN($B14,10)>=ROUNDDOWN(ZoznamHodín[ČAS ZAČATIA],10))*($B14<=ZoznamHodín[ČAS UKONČENIA]),ZoznamHodín[JEDINEČNÉ]),ZoznamHodín[JEDINEČNÉ],0),2),0)","v":0},{"$f":"IFERROR(INDEX(ZoznamHodín[],MATCH(SUMPRODUCT((ZoznamHodín[DEŇ]=RozvrhHodín[[#Headers],[SOBOTA]])*(ROUNDDOWN($B14,10)>=ROUNDDOWN(ZoznamHodín[ČAS ZAČATIA],10))*($B14<=ZoznamHodín[ČAS UKONČENIA]),ZoznamHodín[JEDINEČNÉ]),ZoznamHodín[JEDINEČNÉ],0),2),0)","v":0}]
[null,"10:45:00",{"$f":"IFERROR(INDEX(ZoznamHodín[],MATCH(SUMPRODUCT((ZoznamHodín[DEŇ]=RozvrhHodín[[#Headers],[NEDEĽA]])*(ROUNDDOWN($B15,10)>=ROUNDDOWN(ZoznamHodín[ČAS ZAČATIA],10))*($B15<=ZoznamHodín[ČAS UKONČENIA]),ZoznamHodín[JEDINEČNÉ]),ZoznamHodín[JEDINEČNÉ],0),2),0)","v":0},{"$f":"IFERROR(INDEX(ZoznamHodín[],MATCH(SUMPRODUCT((ZoznamHodín[DEŇ]=RozvrhHodín[[#Headers],[PONDELOK]])*(ROUNDDOWN($B15,10)>=ROUNDDOWN(ZoznamHodín[ČAS ZAČATIA],10))*($B15<=ZoznamHodín[ČAS UKONČENIA]),ZoznamHodín[JEDINEČNÉ]),ZoznamHodín[JEDINEČNÉ],0),2),0)","v":0},{"$f":"IFERROR(INDEX(ZoznamHodín[],MATCH(SUMPRODUCT((ZoznamHodín[DEŇ]=RozvrhHodín[[#Headers],[UTOROK]])*(ROUNDDOWN($B15,10)>=ROUNDDOWN(ZoznamHodín[ČAS ZAČATIA],10))*($B15<=ZoznamHodín[ČAS UKONČENIA]),ZoznamHodín[JEDINEČNÉ]),ZoznamHodín[JEDINEČNÉ],0),2),0)","v":0},{"$f":"IFERROR(INDEX(ZoznamHodín[],MATCH(SUMPRODUCT((ZoznamHodín[DEŇ]=RozvrhHodín[[#Headers],[STREDA]])*(ROUNDDOWN($B15,10)>=ROUNDDOWN(ZoznamHodín[ČAS ZAČATIA],10))*($B15<=ZoznamHodín[ČAS UKONČENIA]),ZoznamHodín[JEDINEČNÉ]),ZoznamHodín[JEDINEČNÉ],0),2),0)","v":0},{"$f":"IFERROR(INDEX(ZoznamHodín[],MATCH(SUMPRODUCT((ZoznamHodín[DEŇ]=RozvrhHodín[[#Headers],[ŠTVRTOK]])*(ROUNDDOWN($B15,10)>=ROUNDDOWN(ZoznamHodín[ČAS ZAČATIA],10))*($B15<=ZoznamHodín[ČAS UKONČENIA]),ZoznamHodín[JEDINEČNÉ]),ZoznamHodín[JEDINEČNÉ],0),2),0)","v":0},{"$f":"IFERROR(INDEX(ZoznamHodín[],MATCH(SUMPRODUCT((ZoznamHodín[DEŇ]=RozvrhHodín[[#Headers],[PIATOK]])*(ROUNDDOWN($B15,10)>=ROUNDDOWN(ZoznamHodín[ČAS ZAČATIA],10))*($B15<=ZoznamHodín[ČAS UKONČENIA]),ZoznamHodín[JEDINEČNÉ]),ZoznamHodín[JEDINEČNÉ],0),2),0)","v":0},{"$f":"IFERROR(INDEX(ZoznamHodín[],MATCH(SUMPRODUCT((ZoznamHodín[DEŇ]=RozvrhHodín[[#Headers],[SOBOTA]])*(ROUNDDOWN($B15,10)>=ROUNDDOWN(ZoznamHodín[ČAS ZAČATIA],10))*($B15<=ZoznamHodín[ČAS UKONČENIA]),ZoznamHodín[JEDINEČNÉ]),ZoznamHodín[JEDINEČNÉ],0),2),0)","v":0}]
[null,"11:00:00",{"$f":"IFERROR(INDEX(ZoznamHodín[],MATCH(SUMPRODUCT((ZoznamHodín[DEŇ]=RozvrhHodín[[#Headers],[NEDEĽA]])*(ROUNDDOWN($B16,10)>=ROUNDDOWN(ZoznamHodín[ČAS ZAČATIA],10))*($B16<=ZoznamHodín[ČAS UKONČENIA]),ZoznamHodín[JEDINEČNÉ]),ZoznamHodín[JEDINEČNÉ],0),2),0)","v":0},{"$f":"IFERROR(INDEX(ZoznamHodín[],MATCH(SUMPRODUCT((ZoznamHodín[DEŇ]=RozvrhHodín[[#Headers],[PONDELOK]])*(ROUNDDOWN($B16,10)>=ROUNDDOWN(ZoznamHodín[ČAS ZAČATIA],10))*($B16<=ZoznamHodín[ČAS UKONČENIA]),ZoznamHodín[JEDINEČNÉ]),ZoznamHodín[JEDINEČNÉ],0),2),0)","v":0},{"$f":"IFERROR(INDEX(ZoznamHodín[],MATCH(SUMPRODUCT((ZoznamHodín[DEŇ]=RozvrhHodín[[#Headers],[UTOROK]])*(ROUNDDOWN($B16,10)>=ROUNDDOWN(ZoznamHodín[ČAS ZAČATIA],10))*($B16<=ZoznamHodín[ČAS UKONČENIA]),ZoznamHodín[JEDINEČNÉ]),ZoznamHodín[JEDINEČNÉ],0),2),0)","v":"ZAF-295"},{"$f":"IFERROR(INDEX(ZoznamHodín[],MATCH(SUMPRODUCT((ZoznamHodín[DEŇ]=RozvrhHodín[[#Headers],[STREDA]])*(ROUNDDOWN($B16,10)>=ROUNDDOWN(ZoznamHodín[ČAS ZAČATIA],10))*($B16<=ZoznamHodín[ČAS UKONČENIA]),ZoznamHodín[JEDINEČNÉ]),ZoznamHodín[JEDINEČNÉ],0),2),0)","v":0},{"$f":"IFERROR(INDEX(ZoznamHodín[],MATCH(SUMPRODUCT((ZoznamHodín[DEŇ]=RozvrhHodín[[#Headers],[ŠTVRTOK]])*(ROUNDDOWN($B16,10)>=ROUNDDOWN(ZoznamHodín[ČAS ZAČATIA],10))*($B16<=ZoznamHodín[ČAS UKONČENIA]),ZoznamHodín[JEDINEČNÉ]),ZoznamHodín[JEDINEČNÉ],0),2),0)","v":"ZAF-295"},{"$f":"IFERROR(INDEX(ZoznamHodín[],MATCH(SUMPRODUCT((ZoznamHodín[DEŇ]=RozvrhHodín[[#Headers],[PIATOK]])*(ROUNDDOWN($B16,10)>=ROUNDDOWN(ZoznamHodín[ČAS ZAČATIA],10))*($B16<=ZoznamHodín[ČAS UKONČENIA]),ZoznamHodín[JEDINEČNÉ]),ZoznamHodín[JEDINEČNÉ],0),2),0)","v":0},{"$f":"IFERROR(INDEX(ZoznamHodín[],MATCH(SUMPRODUCT((ZoznamHodín[DEŇ]=RozvrhHodín[[#Headers],[SOBOTA]])*(ROUNDDOWN($B16,10)>=ROUNDDOWN(ZoznamHodín[ČAS ZAČATIA],10))*($B16<=ZoznamHodín[ČAS UKONČENIA]),ZoznamHodín[JEDINEČNÉ]),ZoznamHodín[JEDINEČNÉ],0),2),0)","v":0}]
[null,"11:15:00",{"$f":"IFERROR(INDEX(ZoznamHodín[],MATCH(SUMPRODUCT((ZoznamHodín[DEŇ]=RozvrhHodín[[#Headers],[NEDEĽA]])*(ROUNDDOWN($B17,10)>=ROUNDDOWN(ZoznamHodín[ČAS ZAČATIA],10))*($B17<=ZoznamHodín[ČAS UKONČENIA]),ZoznamHodín[JEDINEČNÉ]),ZoznamHodín[JEDINEČNÉ],0),2),0)","v":0},{"$f":"IFERROR(INDEX(ZoznamHodín[],MATCH(SUMPRODUCT((ZoznamHodín[DEŇ]=RozvrhHodín[[#Headers],[PONDELOK]])*(ROUNDDOWN($B17,10)>=ROUNDDOWN(ZoznamHodín[ČAS ZAČATIA],10))*($B17<=ZoznamHodín[ČAS UKONČENIA]),ZoznamHodín[JEDINEČNÉ]),ZoznamHodín[JEDINEČNÉ],0),2),0)","v":0},{"$f":"IFERROR(INDEX(ZoznamHodín[],MATCH(SUMPRODUCT((ZoznamHodín[DEŇ]=RozvrhHodín[[#Headers],[UTOROK]])*(ROUNDDOWN($B17,10)>=ROUNDDOWN(ZoznamHodín[ČAS ZAČATIA],10))*($B17<=ZoznamHodín[ČAS UKONČENIA]),ZoznamHodín[JEDINEČNÉ]),ZoznamHodín[JEDINEČNÉ],0),2),0)","v":"ZAF-295"},{"$f":"IFERROR(INDEX(ZoznamHodín[],MATCH(SUMPRODUCT((ZoznamHodín[DEŇ]=RozvrhHodín[[#Headers],[STREDA]])*(ROUNDDOWN($B17,10)>=ROUNDDOWN(ZoznamHodín[ČAS ZAČATIA],10))*($B17<=ZoznamHodín[ČAS UKONČENIA]),ZoznamHodín[JEDINEČNÉ]),ZoznamHodín[JEDINEČNÉ],0),2),0)","v":0},{"$f":"IFERROR(INDEX(ZoznamHodín[],MATCH(SUMPRODUCT((ZoznamHodín[DEŇ]=RozvrhHodín[[#Headers],[ŠTVRTOK]])*(ROUNDDOWN($B17,10)>=ROUNDDOWN(ZoznamHodín[ČAS ZAČATIA],10))*($B17<=ZoznamHodín[ČAS UKONČENIA]),ZoznamHodín[JEDINEČNÉ]),ZoznamHodín[JEDINEČNÉ],0),2),0)","v":"ZAF-295"},{"$f":"IFERROR(INDEX(ZoznamHodín[],MATCH(SUMPRODUCT((ZoznamHodín[DEŇ]=RozvrhHodín[[#Headers],[PIATOK]])*(ROUNDDOWN($B17,10)>=ROUNDDOWN(ZoznamHodín[ČAS ZAČATIA],10))*($B17<=ZoznamHodín[ČAS UKONČENIA]),ZoznamHodín[JEDINEČNÉ]),ZoznamHodín[JEDINEČNÉ],0),2),0)","v":0},{"$f":"IFERROR(INDEX(ZoznamHodín[],MATCH(SUMPRODUCT((ZoznamHodín[DEŇ]=RozvrhHodín[[#Headers],[SOBOTA]])*(ROUNDDOWN($B17,10)>=ROUNDDOWN(ZoznamHodín[ČAS ZAČATIA],10))*($B17<=ZoznamHodín[ČAS UKONČENIA]),ZoznamHodín[JEDINEČNÉ]),ZoznamHodín[JEDINEČNÉ],0),2),0)","v":0}]
[null,"11:30:00",{"$f":"IFERROR(INDEX(ZoznamHodín[],MATCH(SUMPRODUCT((ZoznamHodín[DEŇ]=RozvrhHodín[[#Headers],[NEDEĽA]])*(ROUNDDOWN($B18,10)>=ROUNDDOWN(ZoznamHodín[ČAS ZAČATIA],10))*($B18<=ZoznamHodín[ČAS UKONČENIA]),ZoznamHodín[JEDINEČNÉ]),ZoznamHodín[JEDINEČNÉ],0),2),0)","v":0},{"$f":"IFERROR(INDEX(ZoznamHodín[],MATCH(SUMPRODUCT((ZoznamHodín[DEŇ]=RozvrhHodín[[#Headers],[PONDELOK]])*(ROUNDDOWN($B18,10)>=ROUNDDOWN(ZoznamHodín[ČAS ZAČATIA],10))*($B18<=ZoznamHodín[ČAS UKONČENIA]),ZoznamHodín[JEDINEČNÉ]),ZoznamHodín[JEDINEČNÉ],0),2),0)","v":0},{"$f":"IFERROR(INDEX(ZoznamHodín[],MATCH(SUMPRODUCT((ZoznamHodín[DEŇ]=RozvrhHodín[[#Headers],[UTOROK]])*(ROUNDDOWN($B18,10)>=ROUNDDOWN(ZoznamHodín[ČAS ZAČATIA],10))*($B18<=ZoznamHodín[ČAS UKONČENIA]),ZoznamHodín[JEDINEČNÉ]),ZoznamHodín[JEDINEČNÉ],0),2),0)","v":"ZAF-295"},{"$f":"IFERROR(INDEX(ZoznamHodín[],MATCH(SUMPRODUCT((ZoznamHodín[DEŇ]=RozvrhHodín[[#Headers],[STREDA]])*(ROUNDDOWN($B18,10)>=ROUNDDOWN(ZoznamHodín[ČAS ZAČATIA],10))*($B18<=ZoznamHodín[ČAS UKONČENIA]),ZoznamHodín[JEDINEČNÉ]),ZoznamHodín[JEDINEČNÉ],0),2),0)","v":0},{"$f":"IFERROR(INDEX(ZoznamHodín[],MATCH(SUMPRODUCT((ZoznamHodín[DEŇ]=RozvrhHodín[[#Headers],[ŠTVRTOK]])*(ROUNDDOWN($B18,10)>=ROUNDDOWN(ZoznamHodín[ČAS ZAČATIA],10))*($B18<=ZoznamHodín[ČAS UKONČENIA]),ZoznamHodín[JEDINEČNÉ]),ZoznamHodín[JEDINEČNÉ],0),2),0)","v":"ZAF-295"},{"$f":"IFERROR(INDEX(ZoznamHodín[],MATCH(SUMPRODUCT((ZoznamHodín[DEŇ]=RozvrhHodín[[#Headers],[PIATOK]])*(ROUNDDOWN($B18,10)>=ROUNDDOWN(ZoznamHodín[ČAS ZAČATIA],10))*($B18<=ZoznamHodín[ČAS UKONČENIA]),ZoznamHodín[JEDINEČNÉ]),ZoznamHodín[JEDINEČNÉ],0),2),0)","v":0},{"$f":"IFERROR(INDEX(ZoznamHodín[],MATCH(SUMPRODUCT((ZoznamHodín[DEŇ]=RozvrhHodín[[#Headers],[SOBOTA]])*(ROUNDDOWN($B18,10)>=ROUNDDOWN(ZoznamHodín[ČAS ZAČATIA],10))*($B18<=ZoznamHodín[ČAS UKONČENIA]),ZoznamHodín[JEDINEČNÉ]),ZoznamHodín[JEDINEČNÉ],0),2),0)","v":0}]
[null,"11:45:00",{"$f":"IFERROR(INDEX(ZoznamHodín[],MATCH(SUMPRODUCT((ZoznamHodín[DEŇ]=RozvrhHodín[[#Headers],[NEDEĽA]])*(ROUNDDOWN($B19,10)>=ROUNDDOWN(ZoznamHodín[ČAS ZAČATIA],10))*($B19<=ZoznamHodín[ČAS UKONČENIA]),ZoznamHodín[JEDINEČNÉ]),ZoznamHodín[JEDINEČNÉ],0),2),0)","v":0},{"$f":"IFERROR(INDEX(ZoznamHodín[],MATCH(SUMPRODUCT((ZoznamHodín[DEŇ]=RozvrhHodín[[#Headers],[PONDELOK]])*(ROUNDDOWN($B19,10)>=ROUNDDOWN(ZoznamHodín[ČAS ZAČATIA],10))*($B19<=ZoznamHodín[ČAS UKONČENIA]),ZoznamHodín[JEDINEČNÉ]),ZoznamHodín[JEDINEČNÉ],0),2),0)","v":0},{"$f":"IFERROR(INDEX(ZoznamHodín[],MATCH(SUMPRODUCT((ZoznamHodín[DEŇ]=RozvrhHodín[[#Headers],[UTOROK]])*(ROUNDDOWN($B19,10)>=ROUNDDOWN(ZoznamHodín[ČAS ZAČATIA],10))*($B19<=ZoznamHodín[ČAS UKONČENIA]),ZoznamHodín[JEDINEČNÉ]),ZoznamHodín[JEDINEČNÉ],0),2),0)","v":"ZAF-295"},{"$f":"IFERROR(INDEX(ZoznamHodín[],MATCH(SUMPRODUCT((ZoznamHodín[DEŇ]=RozvrhHodín[[#Headers],[STREDA]])*(ROUNDDOWN($B19,10)>=ROUNDDOWN(ZoznamHodín[ČAS ZAČATIA],10))*($B19<=ZoznamHodín[ČAS UKONČENIA]),ZoznamHodín[JEDINEČNÉ]),ZoznamHodín[JEDINEČNÉ],0),2),0)","v":0},{"$f":"IFERROR(INDEX(ZoznamHodín[],MATCH(SUMPRODUCT((ZoznamHodín[DEŇ]=RozvrhHodín[[#Headers],[ŠTVRTOK]])*(ROUNDDOWN($B19,10)>=ROUNDDOWN(ZoznamHodín[ČAS ZAČATIA],10))*($B19<=ZoznamHodín[ČAS UKONČENIA]),ZoznamHodín[JEDINEČNÉ]),ZoznamHodín[JEDINEČNÉ],0),2),0)","v":"ZAF-295"},{"$f":"IFERROR(INDEX(ZoznamHodín[],MATCH(SUMPRODUCT((ZoznamHodín[DEŇ]=RozvrhHodín[[#Headers],[PIATOK]])*(ROUNDDOWN($B19,10)>=ROUNDDOWN(ZoznamHodín[ČAS ZAČATIA],10))*($B19<=ZoznamHodín[ČAS UKONČENIA]),ZoznamHodín[JEDINEČNÉ]),ZoznamHodín[JEDINEČNÉ],0),2),0)","v":0},{"$f":"IFERROR(INDEX(ZoznamHodín[],MATCH(SUMPRODUCT((ZoznamHodín[DEŇ]=RozvrhHodín[[#Headers],[SOBOTA]])*(ROUNDDOWN($B19,10)>=ROUNDDOWN(ZoznamHodín[ČAS ZAČATIA],10))*($B19<=ZoznamHodín[ČAS UKONČENIA]),ZoznamHodín[JEDINEČNÉ]),ZoznamHodín[JEDINEČNÉ],0),2),0)","v":0}]
[null,"12:00:00",{"$f":"IFERROR(INDEX(ZoznamHodín[],MATCH(SUMPRODUCT((ZoznamHodín[DEŇ]=RozvrhHodín[[#Headers],[NEDEĽA]])*(ROUNDDOWN($B20,10)>=ROUNDDOWN(ZoznamHodín[ČAS ZAČATIA],10))*($B20<=ZoznamHodín[ČAS UKONČENIA]),ZoznamHodín[JEDINEČNÉ]),ZoznamHodín[JEDINEČNÉ],0),2),0)","v":0},{"$f":"IFERROR(INDEX(ZoznamHodín[],MATCH(SUMPRODUCT((ZoznamHodín[DEŇ]=RozvrhHodín[[#Headers],[PONDELOK]])*(ROUNDDOWN($B20,10)>=ROUNDDOWN(ZoznamHodín[ČAS ZAČATIA],10))*($B20<=ZoznamHodín[ČAS UKONČENIA]),ZoznamHodín[JEDINEČNÉ]),ZoznamHodín[JEDINEČNÉ],0),2),0)","v":0},{"$f":"IFERROR(INDEX(ZoznamHodín[],MATCH(SUMPRODUCT((ZoznamHodín[DEŇ]=RozvrhHodín[[#Headers],[UTOROK]])*(ROUNDDOWN($B20,10)>=ROUNDDOWN(ZoznamHodín[ČAS ZAČATIA],10))*($B20<=ZoznamHodín[ČAS UKONČENIA]),ZoznamHodín[JEDINEČNÉ]),ZoznamHodín[JEDINEČNÉ],0),2),0)","v":"ZAF-295"},{"$f":"IFERROR(INDEX(ZoznamHodín[],MATCH(SUMPRODUCT((ZoznamHodín[DEŇ]=RozvrhHodín[[#Headers],[STREDA]])*(ROUNDDOWN($B20,10)>=ROUNDDOWN(ZoznamHodín[ČAS ZAČATIA],10))*($B20<=ZoznamHodín[ČAS UKONČENIA]),ZoznamHodín[JEDINEČNÉ]),ZoznamHodín[JEDINEČNÉ],0),2),0)","v":0},{"$f":"IFERROR(INDEX(ZoznamHodín[],MATCH(SUMPRODUCT((ZoznamHodín[DEŇ]=RozvrhHodín[[#Headers],[ŠTVRTOK]])*(ROUNDDOWN($B20,10)>=ROUNDDOWN(ZoznamHodín[ČAS ZAČATIA],10))*($B20<=ZoznamHodín[ČAS UKONČENIA]),ZoznamHodín[JEDINEČNÉ]),ZoznamHodín[JEDINEČNÉ],0),2),0)","v":"ZAF-295"},{"$f":"IFERROR(INDEX(ZoznamHodín[],MATCH(SUMPRODUCT((ZoznamHodín[DEŇ]=RozvrhHodín[[#Headers],[PIATOK]])*(ROUNDDOWN($B20,10)>=ROUNDDOWN(ZoznamHodín[ČAS ZAČATIA],10))*($B20<=ZoznamHodín[ČAS UKONČENIA]),ZoznamHodín[JEDINEČNÉ]),ZoznamHodín[JEDINEČNÉ],0),2),0)","v":0},{"$f":"IFERROR(INDEX(ZoznamHodín[],MATCH(SUMPRODUCT((ZoznamHodín[DEŇ]=RozvrhHodín[[#Headers],[SOBOTA]])*(ROUNDDOWN($B20,10)>=ROUNDDOWN(ZoznamHodín[ČAS ZAČATIA],10))*($B20<=ZoznamHodín[ČAS UKONČENIA]),ZoznamHodín[JEDINEČNÉ]),ZoznamHodín[JEDINEČNÉ],0),2),0)","v":0}]
[null,"12:15:00",{"$f":"IFERROR(INDEX(ZoznamHodín[],MATCH(SUMPRODUCT((ZoznamHodín[DEŇ]=RozvrhHodín[[#Headers],[NEDEĽA]])*(ROUNDDOWN($B21,10)>=ROUNDDOWN(ZoznamHodín[ČAS ZAČATIA],10))*($B21<=ZoznamHodín[ČAS UKONČENIA]),ZoznamHodín[JEDINEČNÉ]),ZoznamHodín[JEDINEČNÉ],0),2),0)","v":0},{"$f":"IFERROR(INDEX(ZoznamHodín[],MATCH(SUMPRODUCT((ZoznamHodín[DEŇ]=RozvrhHodín[[#Headers],[PONDELOK]])*(ROUNDDOWN($B21,10)>=ROUNDDOWN(ZoznamHodín[ČAS ZAČATIA],10))*($B21<=ZoznamHodín[ČAS UKONČENIA]),ZoznamHodín[JEDINEČNÉ]),ZoznamHodín[JEDINEČNÉ],0),2),0)","v":0},{"$f":"IFERROR(INDEX(ZoznamHodín[],MATCH(SUMPRODUCT((ZoznamHodín[DEŇ]=RozvrhHodín[[#Headers],[UTOROK]])*(ROUNDDOWN($B21,10)>=ROUNDDOWN(ZoznamHodín[ČAS ZAČATIA],10))*($B21<=ZoznamHodín[ČAS UKONČENIA]),ZoznamHodín[JEDINEČNÉ]),ZoznamHodín[JEDINEČNÉ],0),2),0)","v":0},{"$f":"IFERROR(INDEX(ZoznamHodín[],MATCH(SUMPRODUCT((ZoznamHodín[DEŇ]=RozvrhHodín[[#Headers],[STREDA]])*(ROUNDDOWN($B21,10)>=ROUNDDOWN(ZoznamHodín[ČAS ZAČATIA],10))*($B21<=ZoznamHodín[ČAS UKONČENIA]),ZoznamHodín[JEDINEČNÉ]),ZoznamHodín[JEDINEČNÉ],0),2),0)","v":0},{"$f":"IFERROR(INDEX(ZoznamHodín[],MATCH(SUMPRODUCT((ZoznamHodín[DEŇ]=RozvrhHodín[[#Headers],[ŠTVRTOK]])*(ROUNDDOWN($B21,10)>=ROUNDDOWN(ZoznamHodín[ČAS ZAČATIA],10))*($B21<=ZoznamHodín[ČAS UKONČENIA]),ZoznamHodín[JEDINEČNÉ]),ZoznamHodín[JEDINEČNÉ],0),2),0)","v":0},{"$f":"IFERROR(INDEX(ZoznamHodín[],MATCH(SUMPRODUCT((ZoznamHodín[DEŇ]=RozvrhHodín[[#Headers],[PIATOK]])*(ROUNDDOWN($B21,10)>=ROUNDDOWN(ZoznamHodín[ČAS ZAČATIA],10))*($B21<=ZoznamHodín[ČAS UKONČENIA]),ZoznamHodín[JEDINEČNÉ]),ZoznamHodín[JEDINEČNÉ],0),2),0)","v":0},{"$f":"IFERROR(INDEX(ZoznamHodín[],MATCH(SUMPRODUCT((ZoznamHodín[DEŇ]=RozvrhHodín[[#Headers],[SOBOTA]])*(ROUNDDOWN($B21,10)>=ROUNDDOWN(ZoznamHodín[ČAS ZAČATIA],10))*($B21<=ZoznamHodín[ČAS UKONČENIA]),ZoznamHodín[JEDINEČNÉ]),ZoznamHodín[JEDINEČNÉ],0),2),0)","v":0}]
[null,"12:30:00",{"$f":"IFERROR(INDEX(ZoznamHodín[],MATCH(SUMPRODUCT((ZoznamHodín[DEŇ]=RozvrhHodín[[#Headers],[NEDEĽA]])*(ROUNDDOWN($B22,10)>=ROUNDDOWN(ZoznamHodín[ČAS ZAČATIA],10))*($B22<=ZoznamHodín[ČAS UKONČENIA]),ZoznamHodín[JEDINEČNÉ]),ZoznamHodín[JEDINEČNÉ],0),2),0)","v":0},{"$f":"IFERROR(INDEX(ZoznamHodín[],MATCH(SUMPRODUCT((ZoznamHodín[DEŇ]=RozvrhHodín[[#Headers],[PONDELOK]])*(ROUNDDOWN($B22,10)>=ROUNDDOWN(ZoznamHodín[ČAS ZAČATIA],10))*($B22<=ZoznamHodín[ČAS UKONČENIA]),ZoznamHodín[JEDINEČNÉ]),ZoznamHodín[JEDINEČNÉ],0),2),0)","v":0},{"$f":"IFERROR(INDEX(ZoznamHodín[],MATCH(SUMPRODUCT((ZoznamHodín[DEŇ]=RozvrhHodín[[#Headers],[UTOROK]])*(ROUNDDOWN($B22,10)>=ROUNDDOWN(ZoznamHodín[ČAS ZAČATIA],10))*($B22<=ZoznamHodín[ČAS UKONČENIA]),ZoznamHodín[JEDINEČNÉ]),ZoznamHodín[JEDINEČNÉ],0),2),0)","v":0},{"$f":"IFERROR(INDEX(ZoznamHodín[],MATCH(SUMPRODUCT((ZoznamHodín[DEŇ]=RozvrhHodín[[#Headers],[STREDA]])*(ROUNDDOWN($B22,10)>=ROUNDDOWN(ZoznamHodín[ČAS ZAČATIA],10))*($B22<=ZoznamHodín[ČAS UKONČENIA]),ZoznamHodín[JEDINEČNÉ]),ZoznamHodín[JEDINEČNÉ],0),2),0)","v":0},{"$f":"IFERROR(INDEX(ZoznamHodín[],MATCH(SUMPRODUCT((ZoznamHodín[DEŇ]=RozvrhHodín[[#Headers],[ŠTVRTOK]])*(ROUNDDOWN($B22,10)>=ROUNDDOWN(ZoznamHodín[ČAS ZAČATIA],10))*($B22<=ZoznamHodín[ČAS UKONČENIA]),ZoznamHodín[JEDINEČNÉ]),ZoznamHodín[JEDINEČNÉ],0),2),0)","v":0},{"$f":"IFERROR(INDEX(ZoznamHodín[],MATCH(SUMPRODUCT((ZoznamHodín[DEŇ]=RozvrhHodín[[#Headers],[PIATOK]])*(ROUNDDOWN($B22,10)>=ROUNDDOWN(ZoznamHodín[ČAS ZAČATIA],10))*($B22<=ZoznamHodín[ČAS UKONČENIA]),ZoznamHodín[JEDINEČNÉ]),ZoznamHodín[JEDINEČNÉ],0),2),0)","v":0},{"$f":"IFERROR(INDEX(ZoznamHodín[],MATCH(SUMPRODUCT((ZoznamHodín[DEŇ]=RozvrhHodín[[#Headers],[SOBOTA]])*(ROUNDDOWN($B22,10)>=ROUNDDOWN(ZoznamHodín[ČAS ZAČATIA],10))*($B22<=ZoznamHodín[ČAS UKONČENIA]),ZoznamHodín[JEDINEČNÉ]),ZoznamHodín[JEDINEČNÉ],0),2),0)","v":0}]
[null,"12:45:00",{"$f":"IFERROR(INDEX(ZoznamHodín[],MATCH(SUMPRODUCT((ZoznamHodín[DEŇ]=RozvrhHodín[[#Headers],[NEDEĽA]])*(ROUNDDOWN($B23,10)>=ROUNDDOWN(ZoznamHodín[ČAS ZAČATIA],10))*($B23<=ZoznamHodín[ČAS UKONČENIA]),ZoznamHodín[JEDINEČNÉ]),ZoznamHodín[JEDINEČNÉ],0),2),0)","v":0},{"$f":"IFERROR(INDEX(ZoznamHodín[],MATCH(SUMPRODUCT((ZoznamHodín[DEŇ]=RozvrhHodín[[#Headers],[PONDELOK]])*(ROUNDDOWN($B23,10)>=ROUNDDOWN(ZoznamHodín[ČAS ZAČATIA],10))*($B23<=ZoznamHodín[ČAS UKONČENIA]),ZoznamHodín[JEDINEČNÉ]),ZoznamHodín[JEDINEČNÉ],0),2),0)","v":0},{"$f":"IFERROR(INDEX(ZoznamHodín[],MATCH(SUMPRODUCT((ZoznamHodín[DEŇ]=RozvrhHodín[[#Headers],[UTOROK]])*(ROUNDDOWN($B23,10)>=ROUNDDOWN(ZoznamHodín[ČAS ZAČATIA],10))*($B23<=ZoznamHodín[ČAS UKONČENIA]),ZoznamHodín[JEDINEČNÉ]),ZoznamHodín[JEDINEČNÉ],0),2),0)","v":0},{"$f":"IFERROR(INDEX(ZoznamHodín[],MATCH(SUMPRODUCT((ZoznamHodín[DEŇ]=RozvrhHodín[[#Headers],[STREDA]])*(ROUNDDOWN($B23,10)>=ROUNDDOWN(ZoznamHodín[ČAS ZAČATIA],10))*($B23<=ZoznamHodín[ČAS UKONČENIA]),ZoznamHodín[JEDINEČNÉ]),ZoznamHodín[JEDINEČNÉ],0),2),0)","v":0},{"$f":"IFERROR(INDEX(ZoznamHodín[],MATCH(SUMPRODUCT((ZoznamHodín[DEŇ]=RozvrhHodín[[#Headers],[ŠTVRTOK]])*(ROUNDDOWN($B23,10)>=ROUNDDOWN(ZoznamHodín[ČAS ZAČATIA],10))*($B23<=ZoznamHodín[ČAS UKONČENIA]),ZoznamHodín[JEDINEČNÉ]),ZoznamHodín[JEDINEČNÉ],0),2),0)","v":0},{"$f":"IFERROR(INDEX(ZoznamHodín[],MATCH(SUMPRODUCT((ZoznamHodín[DEŇ]=RozvrhHodín[[#Headers],[PIATOK]])*(ROUNDDOWN($B23,10)>=ROUNDDOWN(ZoznamHodín[ČAS ZAČATIA],10))*($B23<=ZoznamHodín[ČAS UKONČENIA]),ZoznamHodín[JEDINEČNÉ]),ZoznamHodín[JEDINEČNÉ],0),2),0)","v":0},{"$f":"IFERROR(INDEX(ZoznamHodín[],MATCH(SUMPRODUCT((ZoznamHodín[DEŇ]=RozvrhHodín[[#Headers],[SOBOTA]])*(ROUNDDOWN($B23,10)>=ROUNDDOWN(ZoznamHodín[ČAS ZAČATIA],10))*($B23<=ZoznamHodín[ČAS UKONČENIA]),ZoznamHodín[JEDINEČNÉ]),ZoznamHodín[JEDINEČNÉ],0),2),0)","v":0}]
[null,"13:00:00",{"$f":"IFERROR(INDEX(ZoznamHodín[],MATCH(SUMPRODUCT((ZoznamHodín[DEŇ]=RozvrhHodín[[#Headers],[NEDEĽA]])*(ROUNDDOWN($B24,10)>=ROUNDDOWN(ZoznamHodín[ČAS ZAČATIA],10))*($B24<=ZoznamHodín[ČAS UKONČENIA]),ZoznamHodín[JEDINEČNÉ]),ZoznamHodín[JEDINEČNÉ],0),2),0)","v":0},{"$f":"IFERROR(INDEX(ZoznamHodín[],MATCH(SUMPRODUCT((ZoznamHodín[DEŇ]=RozvrhHodín[[#Headers],[PONDELOK]])*(ROUNDDOWN($B24,10)>=ROUNDDOWN(ZoznamHodín[ČAS ZAČATIA],10))*($B24<=ZoznamHodín[ČAS UKONČENIA]),ZoznamHodín[JEDINEČNÉ]),ZoznamHodín[JEDINEČNÉ],0),2),0)","v":"PS-121"},{"$f":"IFERROR(INDEX(ZoznamHodín[],MATCH(SUMPRODUCT((ZoznamHodín[DEŇ]=RozvrhHodín[[#Headers],[UTOROK]])*(ROUNDDOWN($B24,10)>=ROUNDDOWN(ZoznamHodín[ČAS ZAČATIA],10))*($B24<=ZoznamHodín[ČAS UKONČENIA]),ZoznamHodín[JEDINEČNÉ]),ZoznamHodín[JEDINEČNÉ],0),2),0)","v":0},{"$f":"IFERROR(INDEX(ZoznamHodín[],MATCH(SUMPRODUCT((ZoznamHodín[DEŇ]=RozvrhHodín[[#Headers],[STREDA]])*(ROUNDDOWN($B24,10)>=ROUNDDOWN(ZoznamHodín[ČAS ZAČATIA],10))*($B24<=ZoznamHodín[ČAS UKONČENIA]),ZoznamHodín[JEDINEČNÉ]),ZoznamHodín[JEDINEČNÉ],0),2),0)","v":"PS-121"},{"$f":"IFERROR(INDEX(ZoznamHodín[],MATCH(SUMPRODUCT((ZoznamHodín[DEŇ]=RozvrhHodín[[#Headers],[ŠTVRTOK]])*(ROUNDDOWN($B24,10)>=ROUNDDOWN(ZoznamHodín[ČAS ZAČATIA],10))*($B24<=ZoznamHodín[ČAS UKONČENIA]),ZoznamHodín[JEDINEČNÉ]),ZoznamHodín[JEDINEČNÉ],0),2),0)","v":0},{"$f":"IFERROR(INDEX(ZoznamHodín[],MATCH(SUMPRODUCT((ZoznamHodín[DEŇ]=RozvrhHodín[[#Headers],[PIATOK]])*(ROUNDDOWN($B24,10)>=ROUNDDOWN(ZoznamHodín[ČAS ZAČATIA],10))*($B24<=ZoznamHodín[ČAS UKONČENIA]),ZoznamHodín[JEDINEČNÉ]),ZoznamHodín[JEDINEČNÉ],0),2),0)","v":0},{"$f":"IFERROR(INDEX(ZoznamHodín[],MATCH(SUMPRODUCT((ZoznamHodín[DEŇ]=RozvrhHodín[[#Headers],[SOBOTA]])*(ROUNDDOWN($B24,10)>=ROUNDDOWN(ZoznamHodín[ČAS ZAČATIA],10))*($B24<=ZoznamHodín[ČAS UKONČENIA]),ZoznamHodín[JEDINEČNÉ]),ZoznamHodín[JEDINEČNÉ],0),2),0)","v":0}]
[null,"13:15:00",{"$f":"IFERROR(INDEX(ZoznamHodín[],MATCH(SUMPRODUCT((ZoznamHodín[DEŇ]=RozvrhHodín[[#Headers],[NEDEĽA]])*(ROUNDDOWN($B25,10)>=ROUNDDOWN(ZoznamHodín[ČAS ZAČATIA],10))*($B25<=ZoznamHodín[ČAS UKONČENIA]),ZoznamHodín[JEDINEČNÉ]),ZoznamHodín[JEDINEČNÉ],0),2),0)","v":0},{"$f":"IFERROR(INDEX(ZoznamHodín[],MATCH(SUMPRODUCT((ZoznamHodín[DEŇ]=RozvrhHodín[[#Headers],[PONDELOK]])*(ROUNDDOWN($B25,10)>=ROUNDDOWN(ZoznamHodín[ČAS ZAČATIA],10))*($B25<=ZoznamHodín[ČAS UKONČENIA]),ZoznamHodín[JEDINEČNÉ]),ZoznamHodín[JEDINEČNÉ],0),2),0)","v":"PS-121"},{"$f":"IFERROR(INDEX(ZoznamHodín[],MATCH(SUMPRODUCT((ZoznamHodín[DEŇ]=RozvrhHodín[[#Headers],[UTOROK]])*(ROUNDDOWN($B25,10)>=ROUNDDOWN(ZoznamHodín[ČAS ZAČATIA],10))*($B25<=ZoznamHodín[ČAS UKONČENIA]),ZoznamHodín[JEDINEČNÉ]),ZoznamHodín[JEDINEČNÉ],0),2),0)","v":0},{"$f":"IFERROR(INDEX(ZoznamHodín[],MATCH(SUMPRODUCT((ZoznamHodín[DEŇ]=RozvrhHodín[[#Headers],[STREDA]])*(ROUNDDOWN($B25,10)>=ROUNDDOWN(ZoznamHodín[ČAS ZAČATIA],10))*($B25<=ZoznamHodín[ČAS UKONČENIA]),ZoznamHodín[JEDINEČNÉ]),ZoznamHodín[JEDINEČNÉ],0),2),0)","v":"PS-121"},{"$f":"IFERROR(INDEX(ZoznamHodín[],MATCH(SUMPRODUCT((ZoznamHodín[DEŇ]=RozvrhHodín[[#Headers],[ŠTVRTOK]])*(ROUNDDOWN($B25,10)>=ROUNDDOWN(ZoznamHodín[ČAS ZAČATIA],10))*($B25<=ZoznamHodín[ČAS UKONČENIA]),ZoznamHodín[JEDINEČNÉ]),ZoznamHodín[JEDINEČNÉ],0),2),0)","v":0},{"$f":"IFERROR(INDEX(ZoznamHodín[],MATCH(SUMPRODUCT((ZoznamHodín[DEŇ]=RozvrhHodín[[#Headers],[PIATOK]])*(ROUNDDOWN($B25,10)>=ROUNDDOWN(ZoznamHodín[ČAS ZAČATIA],10))*($B25<=ZoznamHodín[ČAS UKONČENIA]),ZoznamHodín[JEDINEČNÉ]),ZoznamHodín[JEDINEČNÉ],0),2),0)","v":0},{"$f":"IFERROR(INDEX(ZoznamHodín[],MATCH(SUMPRODUCT((ZoznamHodín[DEŇ]=RozvrhHodín[[#Headers],[SOBOTA]])*(ROUNDDOWN($B25,10)>=ROUNDDOWN(ZoznamHodín[ČAS ZAČATIA],10))*($B25<=ZoznamHodín[ČAS UKONČENIA]),ZoznamHodín[JEDINEČNÉ]),ZoznamHodín[JEDINEČNÉ],0),2),0)","v":0}]
[null,"13:30:00",{"$f":"IFERROR(INDEX(ZoznamHodín[],MATCH(SUMPRODUCT((ZoznamHodín[DEŇ]=RozvrhHodín[[#Headers],[NEDEĽA]])*(ROUNDDOWN($B26,10)>=ROUNDDOWN(ZoznamHodín[ČAS ZAČATIA],10))*($B26<=ZoznamHodín[ČAS UKONČENIA]),ZoznamHodín[JEDINEČNÉ]),ZoznamHodín[JEDINEČNÉ],0),2),0)","v":0},{"$f":"IFERROR(INDEX(ZoznamHodín[],MATCH(SUMPRODUCT((ZoznamHodín[DEŇ]=RozvrhHodín[[#Headers],[PONDELOK]])*(ROUNDDOWN($B26,10)>=ROUNDDOWN(ZoznamHodín[ČAS ZAČATIA],10))*($B26<=ZoznamHodín[ČAS UKONČENIA]),ZoznamHodín[JEDINEČNÉ]),ZoznamHodín[JEDINEČNÉ],0),2),0)","v":"PS-121"},{"$f":"IFERROR(INDEX(ZoznamHodín[],MATCH(SUMPRODUCT((ZoznamHodín[DEŇ]=RozvrhHodín[[#Headers],[UTOROK]])*(ROUNDDOWN($B26,10)>=ROUNDDOWN(ZoznamHodín[ČAS ZAČATIA],10))*($B26<=ZoznamHodín[ČAS UKONČENIA]),ZoznamHodín[JEDINEČNÉ]),ZoznamHodín[JEDINEČNÉ],0),2),0)","v":0},{"$f":"IFERROR(INDEX(ZoznamHodín[],MATCH(SUMPRODUCT((ZoznamHodín[DEŇ]=RozvrhHodín[[#Headers],[STREDA]])*(ROUNDDOWN($B26,10)>=ROUNDDOWN(ZoznamHodín[ČAS ZAČATIA],10))*($B26<=ZoznamHodín[ČAS UKONČENIA]),ZoznamHodín[JEDINEČNÉ]),ZoznamHodín[JEDINEČNÉ],0),2),0)","v":"PS-121"},{"$f":"IFERROR(INDEX(ZoznamHodín[],MATCH(SUMPRODUCT((ZoznamHodín[DEŇ]=RozvrhHodín[[#Headers],[ŠTVRTOK]])*(ROUNDDOWN($B26,10)>=ROUNDDOWN(ZoznamHodín[ČAS ZAČATIA],10))*($B26<=ZoznamHodín[ČAS UKONČENIA]),ZoznamHodín[JEDINEČNÉ]),ZoznamHodín[JEDINEČNÉ],0),2),0)","v":0},{"$f":"IFERROR(INDEX(ZoznamHodín[],MATCH(SUMPRODUCT((ZoznamHodín[DEŇ]=RozvrhHodín[[#Headers],[PIATOK]])*(ROUNDDOWN($B26,10)>=ROUNDDOWN(ZoznamHodín[ČAS ZAČATIA],10))*($B26<=ZoznamHodín[ČAS UKONČENIA]),ZoznamHodín[JEDINEČNÉ]),ZoznamHodín[JEDINEČNÉ],0),2),0)","v":0},{"$f":"IFERROR(INDEX(ZoznamHodín[],MATCH(SUMPRODUCT((ZoznamHodín[DEŇ]=RozvrhHodín[[#Headers],[SOBOTA]])*(ROUNDDOWN($B26,10)>=ROUNDDOWN(ZoznamHodín[ČAS ZAČATIA],10))*($B26<=ZoznamHodín[ČAS UKONČENIA]),ZoznamHodín[JEDINEČNÉ]),ZoznamHodín[JEDINEČNÉ],0),2),0)","v":0}]
[null,"13:45:00",{"$f":"IFERROR(INDEX(ZoznamHodín[],MATCH(SUMPRODUCT((ZoznamHodín[DEŇ]=RozvrhHodín[[#Headers],[NEDEĽA]])*(ROUNDDOWN($B27,10)>=ROUNDDOWN(ZoznamHodín[ČAS ZAČATIA],10))*($B27<=ZoznamHodín[ČAS UKONČENIA]),ZoznamHodín[JEDINEČNÉ]),ZoznamHodín[JEDINEČNÉ],0),2),0)","v":0},{"$f":"IFERROR(INDEX(ZoznamHodín[],MATCH(SUMPRODUCT((ZoznamHodín[DEŇ]=RozvrhHodín[[#Headers],[PONDELOK]])*(ROUNDDOWN($B27,10)>=ROUNDDOWN(ZoznamHodín[ČAS ZAČATIA],10))*($B27<=ZoznamHodín[ČAS UKONČENIA]),ZoznamHodín[JEDINEČNÉ]),ZoznamHodín[JEDINEČNÉ],0),2),0)","v":"PS-121"},{"$f":"IFERROR(INDEX(ZoznamHodín[],MATCH(SUMPRODUCT((ZoznamHodín[DEŇ]=RozvrhHodín[[#Headers],[UTOROK]])*(ROUNDDOWN($B27,10)>=ROUNDDOWN(ZoznamHodín[ČAS ZAČATIA],10))*($B27<=ZoznamHodín[ČAS UKONČENIA]),ZoznamHodín[JEDINEČNÉ]),ZoznamHodín[JEDINEČNÉ],0),2),0)","v":0},{"$f":"IFERROR(INDEX(ZoznamHodín[],MATCH(SUMPRODUCT((ZoznamHodín[DEŇ]=RozvrhHodín[[#Headers],[STREDA]])*(ROUNDDOWN($B27,10)>=ROUNDDOWN(ZoznamHodín[ČAS ZAČATIA],10))*($B27<=ZoznamHodín[ČAS UKONČENIA]),ZoznamHodín[JEDINEČNÉ]),ZoznamHodín[JEDINEČNÉ],0),2),0)","v":"PS-121"},{"$f":"IFERROR(INDEX(ZoznamHodín[],MATCH(SUMPRODUCT((ZoznamHodín[DEŇ]=RozvrhHodín[[#Headers],[ŠTVRTOK]])*(ROUNDDOWN($B27,10)>=ROUNDDOWN(ZoznamHodín[ČAS ZAČATIA],10))*($B27<=ZoznamHodín[ČAS UKONČENIA]),ZoznamHodín[JEDINEČNÉ]),ZoznamHodín[JEDINEČNÉ],0),2),0)","v":0},{"$f":"IFERROR(INDEX(ZoznamHodín[],MATCH(SUMPRODUCT((ZoznamHodín[DEŇ]=RozvrhHodín[[#Headers],[PIATOK]])*(ROUNDDOWN($B27,10)>=ROUNDDOWN(ZoznamHodín[ČAS ZAČATIA],10))*($B27<=ZoznamHodín[ČAS UKONČENIA]),ZoznamHodín[JEDINEČNÉ]),ZoznamHodín[JEDINEČNÉ],0),2),0)","v":0},{"$f":"IFERROR(INDEX(ZoznamHodín[],MATCH(SUMPRODUCT((ZoznamHodín[DEŇ]=RozvrhHodín[[#Headers],[SOBOTA]])*(ROUNDDOWN($B27,10)>=ROUNDDOWN(ZoznamHodín[ČAS ZAČATIA],10))*($B27<=ZoznamHodín[ČAS UKONČENIA]),ZoznamHodín[JEDINEČNÉ]),ZoznamHodín[JEDINEČNÉ],0),2),0)","v":0}]
[null,"14:00:00",{"$f":"IFERROR(INDEX(ZoznamHodín[],MATCH(SUMPRODUCT((ZoznamHodín[DEŇ]=RozvrhHodín[[#Headers],[NEDEĽA]])*(ROUNDDOWN($B28,10)>=ROUNDDOWN(ZoznamHodín[ČAS ZAČATIA],10))*($B28<=ZoznamHodín[ČAS UKONČENIA]),ZoznamHodín[JEDINEČNÉ]),ZoznamHodín[JEDINEČNÉ],0),2),0)","v":0},{"$f":"IFERROR(INDEX(ZoznamHodín[],MATCH(SUMPRODUCT((ZoznamHodín[DEŇ]=RozvrhHodín[[#Headers],[PONDELOK]])*(ROUNDDOWN($B28,10)>=ROUNDDOWN(ZoznamHodín[ČAS ZAČATIA],10))*($B28<=ZoznamHodín[ČAS UKONČENIA]),ZoznamHodín[JEDINEČNÉ]),ZoznamHodín[JEDINEČNÉ],0),2),0)","v":"PS-121"},{"$f":"IFERROR(INDEX(ZoznamHodín[],MATCH(SUMPRODUCT((ZoznamHodín[DEŇ]=RozvrhHodín[[#Headers],[UTOROK]])*(ROUNDDOWN($B28,10)>=ROUNDDOWN(ZoznamHodín[ČAS ZAČATIA],10))*($B28<=ZoznamHodín[ČAS UKONČENIA]),ZoznamHodín[JEDINEČNÉ]),ZoznamHodín[JEDINEČNÉ],0),2),0)","v":0},{"$f":"IFERROR(INDEX(ZoznamHodín[],MATCH(SUMPRODUCT((ZoznamHodín[DEŇ]=RozvrhHodín[[#Headers],[STREDA]])*(ROUNDDOWN($B28,10)>=ROUNDDOWN(ZoznamHodín[ČAS ZAČATIA],10))*($B28<=ZoznamHodín[ČAS UKONČENIA]),ZoznamHodín[JEDINEČNÉ]),ZoznamHodín[JEDINEČNÉ],0),2),0)","v":"PS-121"},{"$f":"IFERROR(INDEX(ZoznamHodín[],MATCH(SUMPRODUCT((ZoznamHodín[DEŇ]=RozvrhHodín[[#Headers],[ŠTVRTOK]])*(ROUNDDOWN($B28,10)>=ROUNDDOWN(ZoznamHodín[ČAS ZAČATIA],10))*($B28<=ZoznamHodín[ČAS UKONČENIA]),ZoznamHodín[JEDINEČNÉ]),ZoznamHodín[JEDINEČNÉ],0),2),0)","v":0},{"$f":"IFERROR(INDEX(ZoznamHodín[],MATCH(SUMPRODUCT((ZoznamHodín[DEŇ]=RozvrhHodín[[#Headers],[PIATOK]])*(ROUNDDOWN($B28,10)>=ROUNDDOWN(ZoznamHodín[ČAS ZAČATIA],10))*($B28<=ZoznamHodín[ČAS UKONČENIA]),ZoznamHodín[JEDINEČNÉ]),ZoznamHodín[JEDINEČNÉ],0),2),0)","v":0},{"$f":"IFERROR(INDEX(ZoznamHodín[],MATCH(SUMPRODUCT((ZoznamHodín[DEŇ]=RozvrhHodín[[#Headers],[SOBOTA]])*(ROUNDDOWN($B28,10)>=ROUNDDOWN(ZoznamHodín[ČAS ZAČATIA],10))*($B28<=ZoznamHodín[ČAS UKONČENIA]),ZoznamHodín[JEDINEČNÉ]),ZoznamHodín[JEDINEČNÉ],0),2),0)","v":0}]
[null,"14:15:00",{"$f":"IFERROR(INDEX(ZoznamHodín[],MATCH(SUMPRODUCT((ZoznamHodín[DEŇ]=RozvrhHodín[[#Headers],[NEDEĽA]])*(ROUNDDOWN($B29,10)>=ROUNDDOWN(ZoznamHodín[ČAS ZAČATIA],10))*($B29<=ZoznamHodín[ČAS UKONČENIA]),ZoznamHodín[JEDINEČNÉ]),ZoznamHodín[JEDINEČNÉ],0),2),0)","v":0},{"$f":"IFERROR(INDEX(ZoznamHodín[],MATCH(SUMPRODUCT((ZoznamHodín[DEŇ]=RozvrhHodín[[#Headers],[PONDELOK]])*(ROUNDDOWN($B29,10)>=ROUNDDOWN(ZoznamHodín[ČAS ZAČATIA],10))*($B29<=ZoznamHodín[ČAS UKONČENIA]),ZoznamHodín[JEDINEČNÉ]),ZoznamHodín[JEDINEČNÉ],0),2),0)","v":0},{"$f":"IFERROR(INDEX(ZoznamHodín[],MATCH(SUMPRODUCT((ZoznamHodín[DEŇ]=RozvrhHodín[[#Headers],[UTOROK]])*(ROUNDDOWN($B29,10)>=ROUNDDOWN(ZoznamHodín[ČAS ZAČATIA],10))*($B29<=ZoznamHodín[ČAS UKONČENIA]),ZoznamHodín[JEDINEČNÉ]),ZoznamHodín[JEDINEČNÉ],0),2),0)","v":0},{"$f":"IFERROR(INDEX(ZoznamHodín[],MATCH(SUMPRODUCT((ZoznamHodín[DEŇ]=RozvrhHodín[[#Headers],[STREDA]])*(ROUNDDOWN($B29,10)>=ROUNDDOWN(ZoznamHodín[ČAS ZAČATIA],10))*($B29<=ZoznamHodín[ČAS UKONČENIA]),ZoznamHodín[JEDINEČNÉ]),ZoznamHodín[JEDINEČNÉ],0),2),0)","v":0},{"$f":"IFERROR(INDEX(ZoznamHodín[],MATCH(SUMPRODUCT((ZoznamHodín[DEŇ]=RozvrhHodín[[#Headers],[ŠTVRTOK]])*(ROUNDDOWN($B29,10)>=ROUNDDOWN(ZoznamHodín[ČAS ZAČATIA],10))*($B29<=ZoznamHodín[ČAS UKONČENIA]),ZoznamHodín[JEDINEČNÉ]),ZoznamHodín[JEDINEČNÉ],0),2),0)","v":0},{"$f":"IFERROR(INDEX(ZoznamHodín[],MATCH(SUMPRODUCT((ZoznamHodín[DEŇ]=RozvrhHodín[[#Headers],[PIATOK]])*(ROUNDDOWN($B29,10)>=ROUNDDOWN(ZoznamHodín[ČAS ZAČATIA],10))*($B29<=ZoznamHodín[ČAS UKONČENIA]),ZoznamHodín[JEDINEČNÉ]),ZoznamHodín[JEDINEČNÉ],0),2),0)","v":0},{"$f":"IFERROR(INDEX(ZoznamHodín[],MATCH(SUMPRODUCT((ZoznamHodín[DEŇ]=RozvrhHodín[[#Headers],[SOBOTA]])*(ROUNDDOWN($B29,10)>=ROUNDDOWN(ZoznamHodín[ČAS ZAČATIA],10))*($B29<=ZoznamHodín[ČAS UKONČENIA]),ZoznamHodín[JEDINEČNÉ]),ZoznamHodín[JEDINEČNÉ],0),2),0)","v":0}]
[null,"14:30:00",{"$f":"IFERROR(INDEX(ZoznamHodín[],MATCH(SUMPRODUCT((ZoznamHodín[DEŇ]=RozvrhHodín[[#Headers],[NEDEĽA]])*(ROUNDDOWN($B30,10)>=ROUNDDOWN(ZoznamHodín[ČAS ZAČATIA],10))*($B30<=ZoznamHodín[ČAS UKONČENIA]),ZoznamHodín[JEDINEČNÉ]),ZoznamHodín[JEDINEČNÉ],0),2),0)","v":0},{"$f":"IFERROR(INDEX(ZoznamHodín[],MATCH(SUMPRODUCT((ZoznamHodín[DEŇ]=RozvrhHodín[[#Headers],[PONDELOK]])*(ROUNDDOWN($B30,10)>=ROUNDDOWN(ZoznamHodín[ČAS ZAČATIA],10))*($B30<=ZoznamHodín[ČAS UKONČENIA]),ZoznamHodín[JEDINEČNÉ]),ZoznamHodín[JEDINEČNÉ],0),2),0)","v":0},{"$f":"IFERROR(INDEX(ZoznamHodín[],MATCH(SUMPRODUCT((ZoznamHodín[DEŇ]=RozvrhHodín[[#Headers],[UTOROK]])*(ROUNDDOWN($B30,10)>=ROUNDDOWN(ZoznamHodín[ČAS ZAČATIA],10))*($B30<=ZoznamHodín[ČAS UKONČENIA]),ZoznamHodín[JEDINEČNÉ]),ZoznamHodín[JEDINEČNÉ],0),2),0)","v":0},{"$f":"IFERROR(INDEX(ZoznamHodín[],MATCH(SUMPRODUCT((ZoznamHodín[DEŇ]=RozvrhHodín[[#Headers],[STREDA]])*(ROUNDDOWN($B30,10)>=ROUNDDOWN(ZoznamHodín[ČAS ZAČATIA],10))*($B30<=ZoznamHodín[ČAS UKONČENIA]),ZoznamHodín[JEDINEČNÉ]),ZoznamHodín[JEDINEČNÉ],0),2),0)","v":0},{"$f":"IFERROR(INDEX(ZoznamHodín[],MATCH(SUMPRODUCT((ZoznamHodín[DEŇ]=RozvrhHodín[[#Headers],[ŠTVRTOK]])*(ROUNDDOWN($B30,10)>=ROUNDDOWN(ZoznamHodín[ČAS ZAČATIA],10))*($B30<=ZoznamHodín[ČAS UKONČENIA]),ZoznamHodín[JEDINEČNÉ]),ZoznamHodín[JEDINEČNÉ],0),2),0)","v":0},{"$f":"IFERROR(INDEX(ZoznamHodín[],MATCH(SUMPRODUCT((ZoznamHodín[DEŇ]=RozvrhHodín[[#Headers],[PIATOK]])*(ROUNDDOWN($B30,10)>=ROUNDDOWN(ZoznamHodín[ČAS ZAČATIA],10))*($B30<=ZoznamHodín[ČAS UKONČENIA]),ZoznamHodín[JEDINEČNÉ]),ZoznamHodín[JEDINEČNÉ],0),2),0)","v":0},{"$f":"IFERROR(INDEX(ZoznamHodín[],MATCH(SUMPRODUCT((ZoznamHodín[DEŇ]=RozvrhHodín[[#Headers],[SOBOTA]])*(ROUNDDOWN($B30,10)>=ROUNDDOWN(ZoznamHodín[ČAS ZAČATIA],10))*($B30<=ZoznamHodín[ČAS UKONČENIA]),ZoznamHodín[JEDINEČNÉ]),ZoznamHodín[JEDINEČNÉ],0),2),0)","v":0}]
[null,"14:45:00",{"$f":"IFERROR(INDEX(ZoznamHodín[],MATCH(SUMPRODUCT((ZoznamHodín[DEŇ]=RozvrhHodín[[#Headers],[NEDEĽA]])*(ROUNDDOWN($B31,10)>=ROUNDDOWN(ZoznamHodín[ČAS ZAČATIA],10))*($B31<=ZoznamHodín[ČAS UKONČENIA]),ZoznamHodín[JEDINEČNÉ]),ZoznamHodín[JEDINEČNÉ],0),2),0)","v":0},{"$f":"IFERROR(INDEX(ZoznamHodín[],MATCH(SUMPRODUCT((ZoznamHodín[DEŇ]=RozvrhHodín[[#Headers],[PONDELOK]])*(ROUNDDOWN($B31,10)>=ROUNDDOWN(ZoznamHodín[ČAS ZAČATIA],10))*($B31<=ZoznamHodín[ČAS UKONČENIA]),ZoznamHodín[JEDINEČNÉ]),ZoznamHodín[JEDINEČNÉ],0),2),0)","v":0},{"$f":"IFERROR(INDEX(ZoznamHodín[],MATCH(SUMPRODUCT((ZoznamHodín[DEŇ]=RozvrhHodín[[#Headers],[UTOROK]])*(ROUNDDOWN($B31,10)>=ROUNDDOWN(ZoznamHodín[ČAS ZAČATIA],10))*($B31<=ZoznamHodín[ČAS UKONČENIA]),ZoznamHodín[JEDINEČNÉ]),ZoznamHodín[JEDINEČNÉ],0),2),0)","v":0},{"$f":"IFERROR(INDEX(ZoznamHodín[],MATCH(SUMPRODUCT((ZoznamHodín[DEŇ]=RozvrhHodín[[#Headers],[STREDA]])*(ROUNDDOWN($B31,10)>=ROUNDDOWN(ZoznamHodín[ČAS ZAČATIA],10))*($B31<=ZoznamHodín[ČAS UKONČENIA]),ZoznamHodín[JEDINEČNÉ]),ZoznamHodín[JEDINEČNÉ],0),2),0)","v":0},{"$f":"IFERROR(INDEX(ZoznamHodín[],MATCH(SUMPRODUCT((ZoznamHodín[DEŇ]=RozvrhHodín[[#Headers],[ŠTVRTOK]])*(ROUNDDOWN($B31,10)>=ROUNDDOWN(ZoznamHodín[ČAS ZAČATIA],10))*($B31<=ZoznamHodín[ČAS UKONČENIA]),ZoznamHodín[JEDINEČNÉ]),ZoznamHodín[JEDINEČNÉ],0),2),0)","v":0},{"$f":"IFERROR(INDEX(ZoznamHodín[],MATCH(SUMPRODUCT((ZoznamHodín[DEŇ]=RozvrhHodín[[#Headers],[PIATOK]])*(ROUNDDOWN($B31,10)>=ROUNDDOWN(ZoznamHodín[ČAS ZAČATIA],10))*($B31<=ZoznamHodín[ČAS UKONČENIA]),ZoznamHodín[JEDINEČNÉ]),ZoznamHodín[JEDINEČNÉ],0),2),0)","v":0},{"$f":"IFERROR(INDEX(ZoznamHodín[],MATCH(SUMPRODUCT((ZoznamHodín[DEŇ]=RozvrhHodín[[#Headers],[SOBOTA]])*(ROUNDDOWN($B31,10)>=ROUNDDOWN(ZoznamHodín[ČAS ZAČATIA],10))*($B31<=ZoznamHodín[ČAS UKONČENIA]),ZoznamHodín[JEDINEČNÉ]),ZoznamHodín[JEDINEČNÉ],0),2),0)","v":0}]
[null,"15:00:00",{"$f":"IFERROR(INDEX(ZoznamHodín[],MATCH(SUMPRODUCT((ZoznamHodín[DEŇ]=RozvrhHodín[[#Headers],[NEDEĽA]])*(ROUNDDOWN($B32,10)>=ROUNDDOWN(ZoznamHodín[ČAS ZAČATIA],10))*($B32<=ZoznamHodín[ČAS UKONČENIA]),ZoznamHodín[JEDINEČNÉ]),ZoznamHodín[JEDINEČNÉ],0),2),0)","v":0},{"$f":"IFERROR(INDEX(ZoznamHodín[],MATCH(SUMPRODUCT((ZoznamHodín[DEŇ]=RozvrhHodín[[#Headers],[PONDELOK]])*(ROUNDDOWN($B32,10)>=ROUNDDOWN(ZoznamHodín[ČAS ZAČATIA],10))*($B32<=ZoznamHodín[ČAS UKONČENIA]),ZoznamHodín[JEDINEČNÉ]),ZoznamHodín[JEDINEČNÉ],0),2),0)","v":0},{"$f":"IFERROR(INDEX(ZoznamHodín[],MATCH(SUMPRODUCT((ZoznamHodín[DEŇ]=RozvrhHodín[[#Headers],[UTOROK]])*(ROUNDDOWN($B32,10)>=ROUNDDOWN(ZoznamHodín[ČAS ZAČATIA],10))*($B32<=ZoznamHodín[ČAS UKONČENIA]),ZoznamHodín[JEDINEČNÉ]),ZoznamHodín[JEDINEČNÉ],0),2),0)","v":0},{"$f":"IFERROR(INDEX(ZoznamHodín[],MATCH(SUMPRODUCT((ZoznamHodín[DEŇ]=RozvrhHodín[[#Headers],[STREDA]])*(ROUNDDOWN($B32,10)>=ROUNDDOWN(ZoznamHodín[ČAS ZAČATIA],10))*($B32<=ZoznamHodín[ČAS UKONČENIA]),ZoznamHodín[JEDINEČNÉ]),ZoznamHodín[JEDINEČNÉ],0),2),0)","v":0},{"$f":"IFERROR(INDEX(ZoznamHodín[],MATCH(SUMPRODUCT((ZoznamHodín[DEŇ]=RozvrhHodín[[#Headers],[ŠTVRTOK]])*(ROUNDDOWN($B32,10)>=ROUNDDOWN(ZoznamHodín[ČAS ZAČATIA],10))*($B32<=ZoznamHodín[ČAS UKONČENIA]),ZoznamHodín[JEDINEČNÉ]),ZoznamHodín[JEDINEČNÉ],0),2),0)","v":0},{"$f":"IFERROR(INDEX(ZoznamHodín[],MATCH(SUMPRODUCT((ZoznamHodín[DEŇ]=RozvrhHodín[[#Headers],[PIATOK]])*(ROUNDDOWN($B32,10)>=ROUNDDOWN(ZoznamHodín[ČAS ZAČATIA],10))*($B32<=ZoznamHodín[ČAS UKONČENIA]),ZoznamHodín[JEDINEČNÉ]),ZoznamHodín[JEDINEČNÉ],0),2),0)","v":0},{"$f":"IFERROR(INDEX(ZoznamHodín[],MATCH(SUMPRODUCT((ZoznamHodín[DEŇ]=RozvrhHodín[[#Headers],[SOBOTA]])*(ROUNDDOWN($B32,10)>=ROUNDDOWN(ZoznamHodín[ČAS ZAČATIA],10))*($B32<=ZoznamHodín[ČAS UKONČENIA]),ZoznamHodín[JEDINEČNÉ]),ZoznamHodín[JEDINEČNÉ],0),2),0)","v":0}]
[null,"15:15:00",{"$f":"IFERROR(INDEX(ZoznamHodín[],MATCH(SUMPRODUCT((ZoznamHodín[DEŇ]=RozvrhHodín[[#Headers],[NEDEĽA]])*(ROUNDDOWN($B33,10)>=ROUNDDOWN(ZoznamHodín[ČAS ZAČATIA],10))*($B33<=ZoznamHodín[ČAS UKONČENIA]),ZoznamHodín[JEDINEČNÉ]),ZoznamHodín[JEDINEČNÉ],0),2),0)","v":0},{"$f":"IFERROR(INDEX(ZoznamHodín[],MATCH(SUMPRODUCT((ZoznamHodín[DEŇ]=RozvrhHodín[[#Headers],[PONDELOK]])*(ROUNDDOWN($B33,10)>=ROUNDDOWN(ZoznamHodín[ČAS ZAČATIA],10))*($B33<=ZoznamHodín[ČAS UKONČENIA]),ZoznamHodín[JEDINEČNÉ]),ZoznamHodín[JEDINEČNÉ],0),2),0)","v":0},{"$f":"IFERROR(INDEX(ZoznamHodín[],MATCH(SUMPRODUCT((ZoznamHodín[DEŇ]=RozvrhHodín[[#Headers],[UTOROK]])*(ROUNDDOWN($B33,10)>=ROUNDDOWN(ZoznamHodín[ČAS ZAČATIA],10))*($B33<=ZoznamHodín[ČAS UKONČENIA]),ZoznamHodín[JEDINEČNÉ]),ZoznamHodín[JEDINEČNÉ],0),2),0)","v":0},{"$f":"IFERROR(INDEX(ZoznamHodín[],MATCH(SUMPRODUCT((ZoznamHodín[DEŇ]=RozvrhHodín[[#Headers],[STREDA]])*(ROUNDDOWN($B33,10)>=ROUNDDOWN(ZoznamHodín[ČAS ZAČATIA],10))*($B33<=ZoznamHodín[ČAS UKONČENIA]),ZoznamHodín[JEDINEČNÉ]),ZoznamHodín[JEDINEČNÉ],0),2),0)","v":0},{"$f":"IFERROR(INDEX(ZoznamHodín[],MATCH(SUMPRODUCT((ZoznamHodín[DEŇ]=RozvrhHodín[[#Headers],[ŠTVRTOK]])*(ROUNDDOWN($B33,10)>=ROUNDDOWN(ZoznamHodín[ČAS ZAČATIA],10))*($B33<=ZoznamHodín[ČAS UKONČENIA]),ZoznamHodín[JEDINEČNÉ]),ZoznamHodín[JEDINEČNÉ],0),2),0)","v":0},{"$f":"IFERROR(INDEX(ZoznamHodín[],MATCH(SUMPRODUCT((ZoznamHodín[DEŇ]=RozvrhHodín[[#Headers],[PIATOK]])*(ROUNDDOWN($B33,10)>=ROUNDDOWN(ZoznamHodín[ČAS ZAČATIA],10))*($B33<=ZoznamHodín[ČAS UKONČENIA]),ZoznamHodín[JEDINEČNÉ]),ZoznamHodín[JEDINEČNÉ],0),2),0)","v":0},{"$f":"IFERROR(INDEX(ZoznamHodín[],MATCH(SUMPRODUCT((ZoznamHodín[DEŇ]=RozvrhHodín[[#Headers],[SOBOTA]])*(ROUNDDOWN($B33,10)>=ROUNDDOWN(ZoznamHodín[ČAS ZAČATIA],10))*($B33<=ZoznamHodín[ČAS UKONČENIA]),ZoznamHodín[JEDINEČNÉ]),ZoznamHodín[JEDINEČNÉ],0),2),0)","v":0}]
[null,"15:30:00",{"$f":"IFERROR(INDEX(ZoznamHodín[],MATCH(SUMPRODUCT((ZoznamHodín[DEŇ]=RozvrhHodín[[#Headers],[NEDEĽA]])*(ROUNDDOWN($B34,10)>=ROUNDDOWN(ZoznamHodín[ČAS ZAČATIA],10))*($B34<=ZoznamHodín[ČAS UKONČENIA]),ZoznamHodín[JEDINEČNÉ]),ZoznamHodín[JEDINEČNÉ],0),2),0)","v":0},{"$f":"IFERROR(INDEX(ZoznamHodín[],MATCH(SUMPRODUCT((ZoznamHodín[DEŇ]=RozvrhHodín[[#Headers],[PONDELOK]])*(ROUNDDOWN($B34,10)>=ROUNDDOWN(ZoznamHodín[ČAS ZAČATIA],10))*($B34<=ZoznamHodín[ČAS UKONČENIA]),ZoznamHodín[JEDINEČNÉ]),ZoznamHodín[JEDINEČNÉ],0),2),0)","v":0},{"$f":"IFERROR(INDEX(ZoznamHodín[],MATCH(SUMPRODUCT((ZoznamHodín[DEŇ]=RozvrhHodín[[#Headers],[UTOROK]])*(ROUNDDOWN($B34,10)>=ROUNDDOWN(ZoznamHodín[ČAS ZAČATIA],10))*($B34<=ZoznamHodín[ČAS UKONČENIA]),ZoznamHodín[JEDINEČNÉ]),ZoznamHodín[JEDINEČNÉ],0),2),0)","v":0},{"$f":"IFERROR(INDEX(ZoznamHodín[],MATCH(SUMPRODUCT((ZoznamHodín[DEŇ]=RozvrhHodín[[#Headers],[STREDA]])*(ROUNDDOWN($B34,10)>=ROUNDDOWN(ZoznamHodín[ČAS ZAČATIA],10))*($B34<=ZoznamHodín[ČAS UKONČENIA]),ZoznamHodín[JEDINEČNÉ]),ZoznamHodín[JEDINEČNÉ],0),2),0)","v":0},{"$f":"IFERROR(INDEX(ZoznamHodín[],MATCH(SUMPRODUCT((ZoznamHodín[DEŇ]=RozvrhHodín[[#Headers],[ŠTVRTOK]])*(ROUNDDOWN($B34,10)>=ROUNDDOWN(ZoznamHodín[ČAS ZAČATIA],10))*($B34<=ZoznamHodín[ČAS UKONČENIA]),ZoznamHodín[JEDINEČNÉ]),ZoznamHodín[JEDINEČNÉ],0),2),0)","v":0},{"$f":"IFERROR(INDEX(ZoznamHodín[],MATCH(SUMPRODUCT((ZoznamHodín[DEŇ]=RozvrhHodín[[#Headers],[PIATOK]])*(ROUNDDOWN($B34,10)>=ROUNDDOWN(ZoznamHodín[ČAS ZAČATIA],10))*($B34<=ZoznamHodín[ČAS UKONČENIA]),ZoznamHodín[JEDINEČNÉ]),ZoznamHodín[JEDINEČNÉ],0),2),0)","v":0},{"$f":"IFERROR(INDEX(ZoznamHodín[],MATCH(SUMPRODUCT((ZoznamHodín[DEŇ]=RozvrhHodín[[#Headers],[SOBOTA]])*(ROUNDDOWN($B34,10)>=ROUNDDOWN(ZoznamHodín[ČAS ZAČATIA],10))*($B34<=ZoznamHodín[ČAS UKONČENIA]),ZoznamHodín[JEDINEČNÉ]),ZoznamHodín[JEDINEČNÉ],0),2),0)","v":0}]
[null,"15:45:00",{"$f":"IFERROR(INDEX(ZoznamHodín[],MATCH(SUMPRODUCT((ZoznamHodín[DEŇ]=RozvrhHodín[[#Headers],[NEDEĽA]])*(ROUNDDOWN($B35,10)>=ROUNDDOWN(ZoznamHodín[ČAS ZAČATIA],10))*($B35<=ZoznamHodín[ČAS UKONČENIA]),ZoznamHodín[JEDINEČNÉ]),ZoznamHodín[JEDINEČNÉ],0),2),0)","v":0},{"$f":"IFERROR(INDEX(ZoznamHodín[],MATCH(SUMPRODUCT((ZoznamHodín[DEŇ]=RozvrhHodín[[#Headers],[PONDELOK]])*(ROUNDDOWN($B35,10)>=ROUNDDOWN(ZoznamHodín[ČAS ZAČATIA],10))*($B35<=ZoznamHodín[ČAS UKONČENIA]),ZoznamHodín[JEDINEČNÉ]),ZoznamHodín[JEDINEČNÉ],0),2),0)","v":0},{"$f":"IFERROR(INDEX(ZoznamHodín[],MATCH(SUMPRODUCT((ZoznamHodín[DEŇ]=RozvrhHodín[[#Headers],[UTOROK]])*(ROUNDDOWN($B35,10)>=ROUNDDOWN(ZoznamHodín[ČAS ZAČATIA],10))*($B35<=ZoznamHodín[ČAS UKONČENIA]),ZoznamHodín[JEDINEČNÉ]),ZoznamHodín[JEDINEČNÉ],0),2),0)","v":0},{"$f":"IFERROR(INDEX(ZoznamHodín[],MATCH(SUMPRODUCT((ZoznamHodín[DEŇ]=RozvrhHodín[[#Headers],[STREDA]])*(ROUNDDOWN($B35,10)>=ROUNDDOWN(ZoznamHodín[ČAS ZAČATIA],10))*($B35<=ZoznamHodín[ČAS UKONČENIA]),ZoznamHodín[JEDINEČNÉ]),ZoznamHodín[JEDINEČNÉ],0),2),0)","v":0},{"$f":"IFERROR(INDEX(ZoznamHodín[],MATCH(SUMPRODUCT((ZoznamHodín[DEŇ]=RozvrhHodín[[#Headers],[ŠTVRTOK]])*(ROUNDDOWN($B35,10)>=ROUNDDOWN(ZoznamHodín[ČAS ZAČATIA],10))*($B35<=ZoznamHodín[ČAS UKONČENIA]),ZoznamHodín[JEDINEČNÉ]),ZoznamHodín[JEDINEČNÉ],0),2),0)","v":0},{"$f":"IFERROR(INDEX(ZoznamHodín[],MATCH(SUMPRODUCT((ZoznamHodín[DEŇ]=RozvrhHodín[[#Headers],[PIATOK]])*(ROUNDDOWN($B35,10)>=ROUNDDOWN(ZoznamHodín[ČAS ZAČATIA],10))*($B35<=ZoznamHodín[ČAS UKONČENIA]),ZoznamHodín[JEDINEČNÉ]),ZoznamHodín[JEDINEČNÉ],0),2),0)","v":0},{"$f":"IFERROR(INDEX(ZoznamHodín[],MATCH(SUMPRODUCT((ZoznamHodín[DEŇ]=RozvrhHodín[[#Headers],[SOBOTA]])*(ROUNDDOWN($B35,10)>=ROUNDDOWN(ZoznamHodín[ČAS ZAČATIA],10))*($B35<=ZoznamHodín[ČAS UKONČENIA]),ZoznamHodín[JEDINEČNÉ]),ZoznamHodín[JEDINEČNÉ],0),2),0)","v":0}]
[null,"16:00:00",{"$f":"IFERROR(INDEX(ZoznamHodín[],MATCH(SUMPRODUCT((ZoznamHodín[DEŇ]=RozvrhHodín[[#Headers],[NEDEĽA]])*(ROUNDDOWN($B36,10)>=ROUNDDOWN(ZoznamHodín[ČAS ZAČATIA],10))*($B36<=ZoznamHodín[ČAS UKONČENIA]),ZoznamHodín[JEDINEČNÉ]),ZoznamHodín[JEDINEČNÉ],0),2),0)","v":0},{"$f":"IFERROR(INDEX(ZoznamHodín[],MATCH(SUMPRODUCT((ZoznamHodín[DEŇ]=RozvrhHodín[[#Headers],[PONDELOK]])*(ROUNDDOWN($B36,10)>=ROUNDDOWN(ZoznamHodín[ČAS ZAČATIA],10))*($B36<=ZoznamHodín[ČAS UKONČENIA]),ZoznamHodín[JEDINEČNÉ]),ZoznamHodín[JEDINEČNÉ],0),2),0)","v":"VP-111"},{"$f":"IFERROR(INDEX(ZoznamHodín[],MATCH(SUMPRODUCT((ZoznamHodín[DEŇ]=RozvrhHodín[[#Headers],[UTOROK]])*(ROUNDDOWN($B36,10)>=ROUNDDOWN(ZoznamHodín[ČAS ZAČATIA],10))*($B36<=ZoznamHodín[ČAS UKONČENIA]),ZoznamHodín[JEDINEČNÉ]),ZoznamHodín[JEDINEČNÉ],0),2),0)","v":0},{"$f":"IFERROR(INDEX(ZoznamHodín[],MATCH(SUMPRODUCT((ZoznamHodín[DEŇ]=RozvrhHodín[[#Headers],[STREDA]])*(ROUNDDOWN($B36,10)>=ROUNDDOWN(ZoznamHodín[ČAS ZAČATIA],10))*($B36<=ZoznamHodín[ČAS UKONČENIA]),ZoznamHodín[JEDINEČNÉ]),ZoznamHodín[JEDINEČNÉ],0),2),0)","v":0},{"$f":"IFERROR(INDEX(ZoznamHodín[],MATCH(SUMPRODUCT((ZoznamHodín[DEŇ]=RozvrhHodín[[#Headers],[ŠTVRTOK]])*(ROUNDDOWN($B36,10)>=ROUNDDOWN(ZoznamHodín[ČAS ZAČATIA],10))*($B36<=ZoznamHodín[ČAS UKONČENIA]),ZoznamHodín[JEDINEČNÉ]),ZoznamHodín[JEDINEČNÉ],0),2),0)","v":0},{"$f":"IFERROR(INDEX(ZoznamHodín[],MATCH(SUMPRODUCT((ZoznamHodín[DEŇ]=RozvrhHodín[[#Headers],[PIATOK]])*(ROUNDDOWN($B36,10)>=ROUNDDOWN(ZoznamHodín[ČAS ZAČATIA],10))*($B36<=ZoznamHodín[ČAS UKONČENIA]),ZoznamHodín[JEDINEČNÉ]),ZoznamHodín[JEDINEČNÉ],0),2),0)","v":0},{"$f":"IFERROR(INDEX(ZoznamHodín[],MATCH(SUMPRODUCT((ZoznamHodín[DEŇ]=RozvrhHodín[[#Headers],[SOBOTA]])*(ROUNDDOWN($B36,10)>=ROUNDDOWN(ZoznamHodín[ČAS ZAČATIA],10))*($B36<=ZoznamHodín[ČAS UKONČENIA]),ZoznamHodín[JEDINEČNÉ]),ZoznamHodín[JEDINEČNÉ],0),2),0)","v":0}]
[null,{"$f":"B36+Prírastok","v":"16:15:00"},{"$f":"IFERROR(INDEX(ZoznamHodín[],MATCH(SUMPRODUCT((ZoznamHodín[DEŇ]=RozvrhHodín[[#Headers],[NEDEĽA]])*(ROUNDDOWN($B37,10)>=ROUNDDOWN(ZoznamHodín[ČAS ZAČATIA],10))*($B37<=ZoznamHodín[ČAS UKONČENIA]),ZoznamHodín[JEDINEČNÉ]),ZoznamHodín[JEDINEČNÉ],0),2),0)","v":0},{"$f":"IFERROR(INDEX(ZoznamHodín[],MATCH(SUMPRODUCT((ZoznamHodín[DEŇ]=RozvrhHodín[[#Headers],[PONDELOK]])*(ROUNDDOWN($B37,10)>=ROUNDDOWN(ZoznamHodín[ČAS ZAČATIA],10))*($B37<=ZoznamHodín[ČAS UKONČENIA]),ZoznamHodín[JEDINEČNÉ]),ZoznamHodín[JEDINEČNÉ],0),2),0)","v":"VP-111"},{"$f":"IFERROR(INDEX(ZoznamHodín[],MATCH(SUMPRODUCT((ZoznamHodín[DEŇ]=RozvrhHodín[[#Headers],[UTOROK]])*(ROUNDDOWN($B37,10)>=ROUNDDOWN(ZoznamHodín[ČAS ZAČATIA],10))*($B37<=ZoznamHodín[ČAS UKONČENIA]),ZoznamHodín[JEDINEČNÉ]),ZoznamHodín[JEDINEČNÉ],0),2),0)","v":0},{"$f":"IFERROR(INDEX(ZoznamHodín[],MATCH(SUMPRODUCT((ZoznamHodín[DEŇ]=RozvrhHodín[[#Headers],[STREDA]])*(ROUNDDOWN($B37,10)>=ROUNDDOWN(ZoznamHodín[ČAS ZAČATIA],10))*($B37<=ZoznamHodín[ČAS UKONČENIA]),ZoznamHodín[JEDINEČNÉ]),ZoznamHodín[JEDINEČNÉ],0),2),0)","v":0},{"$f":"IFERROR(INDEX(ZoznamHodín[],MATCH(SUMPRODUCT((ZoznamHodín[DEŇ]=RozvrhHodín[[#Headers],[ŠTVRTOK]])*(ROUNDDOWN($B37,10)>=ROUNDDOWN(ZoznamHodín[ČAS ZAČATIA],10))*($B37<=ZoznamHodín[ČAS UKONČENIA]),ZoznamHodín[JEDINEČNÉ]),ZoznamHodín[JEDINEČNÉ],0),2),0)","v":0},{"$f":"IFERROR(INDEX(ZoznamHodín[],MATCH(SUMPRODUCT((ZoznamHodín[DEŇ]=RozvrhHodín[[#Headers],[PIATOK]])*(ROUNDDOWN($B37,10)>=ROUNDDOWN(ZoznamHodín[ČAS ZAČATIA],10))*($B37<=ZoznamHodín[ČAS UKONČENIA]),ZoznamHodín[JEDINEČNÉ]),ZoznamHodín[JEDINEČNÉ],0),2),0)","v":0},{"$f":"IFERROR(INDEX(ZoznamHodín[],MATCH(SUMPRODUCT((ZoznamHodín[DEŇ]=RozvrhHodín[[#Headers],[SOBOTA]])*(ROUNDDOWN($B37,10)>=ROUNDDOWN(ZoznamHodín[ČAS ZAČATIA],10))*($B37<=ZoznamHodín[ČAS UKONČENIA]),ZoznamHodín[JEDINEČNÉ]),ZoznamHodín[JEDINEČNÉ],0),2),0)","v":0}]
[null,"16:30:00",{"$f":"IFERROR(INDEX(ZoznamHodín[],MATCH(SUMPRODUCT((ZoznamHodín[DEŇ]=RozvrhHodín[[#Headers],[NEDEĽA]])*(ROUNDDOWN($B38,10)>=ROUNDDOWN(ZoznamHodín[ČAS ZAČATIA],10))*($B38<=ZoznamHodín[ČAS UKONČENIA]),ZoznamHodín[JEDINEČNÉ]),ZoznamHodín[JEDINEČNÉ],0),2),0)","v":0},{"$f":"IFERROR(INDEX(ZoznamHodín[],MATCH(SUMPRODUCT((ZoznamHodín[DEŇ]=RozvrhHodín[[#Headers],[PONDELOK]])*(ROUNDDOWN($B38,10)>=ROUNDDOWN(ZoznamHodín[ČAS ZAČATIA],10))*($B38<=ZoznamHodín[ČAS UKONČENIA]),ZoznamHodín[JEDINEČNÉ]),ZoznamHodín[JEDINEČNÉ],0),2),0)","v":"VP-111"},{"$f":"IFERROR(INDEX(ZoznamHodín[],MATCH(SUMPRODUCT((ZoznamHodín[DEŇ]=RozvrhHodín[[#Headers],[UTOROK]])*(ROUNDDOWN($B38,10)>=ROUNDDOWN(ZoznamHodín[ČAS ZAČATIA],10))*($B38<=ZoznamHodín[ČAS UKONČENIA]),ZoznamHodín[JEDINEČNÉ]),ZoznamHodín[JEDINEČNÉ],0),2),0)","v":0},{"$f":"IFERROR(INDEX(ZoznamHodín[],MATCH(SUMPRODUCT((ZoznamHodín[DEŇ]=RozvrhHodín[[#Headers],[STREDA]])*(ROUNDDOWN($B38,10)>=ROUNDDOWN(ZoznamHodín[ČAS ZAČATIA],10))*($B38<=ZoznamHodín[ČAS UKONČENIA]),ZoznamHodín[JEDINEČNÉ]),ZoznamHodín[JEDINEČNÉ],0),2),0)","v":0},{"$f":"IFERROR(INDEX(ZoznamHodín[],MATCH(SUMPRODUCT((ZoznamHodín[DEŇ]=RozvrhHodín[[#Headers],[ŠTVRTOK]])*(ROUNDDOWN($B38,10)>=ROUNDDOWN(ZoznamHodín[ČAS ZAČATIA],10))*($B38<=ZoznamHodín[ČAS UKONČENIA]),ZoznamHodín[JEDINEČNÉ]),ZoznamHodín[JEDINEČNÉ],0),2),0)","v":0},{"$f":"IFERROR(INDEX(ZoznamHodín[],MATCH(SUMPRODUCT((ZoznamHodín[DEŇ]=RozvrhHodín[[#Headers],[PIATOK]])*(ROUNDDOWN($B38,10)>=ROUNDDOWN(ZoznamHodín[ČAS ZAČATIA],10))*($B38<=ZoznamHodín[ČAS UKONČENIA]),ZoznamHodín[JEDINEČNÉ]),ZoznamHodín[JEDINEČNÉ],0),2),0)","v":0},{"$f":"IFERROR(INDEX(ZoznamHodín[],MATCH(SUMPRODUCT((ZoznamHodín[DEŇ]=RozvrhHodín[[#Headers],[SOBOTA]])*(ROUNDDOWN($B38,10)>=ROUNDDOWN(ZoznamHodín[ČAS ZAČATIA],10))*($B38<=ZoznamHodín[ČAS UKONČENIA]),ZoznamHodín[JEDINEČNÉ]),ZoznamHodín[JEDINEČNÉ],0),2),0)","v":0}]
[null,"16:45:00",{"$f":"IFERROR(INDEX(ZoznamHodín[],MATCH(SUMPRODUCT((ZoznamHodín[DEŇ]=RozvrhHodín[[#Headers],[NEDEĽA]])*(ROUNDDOWN($B39,10)>=ROUNDDOWN(ZoznamHodín[ČAS ZAČATIA],10))*($B39<=ZoznamHodín[ČAS UKONČENIA]),ZoznamHodín[JEDINEČNÉ]),ZoznamHodín[JEDINEČNÉ],0),2),0)","v":0},{"$f":"IFERROR(INDEX(ZoznamHodín[],MATCH(SUMPRODUCT((ZoznamHodín[DEŇ]=RozvrhHodín[[#Headers],[PONDELOK]])*(ROUNDDOWN($B39,10)>=ROUNDDOWN(ZoznamHodín[ČAS ZAČATIA],10))*($B39<=ZoznamHodín[ČAS UKONČENIA]),ZoznamHodín[JEDINEČNÉ]),ZoznamHodín[JEDINEČNÉ],0),2),0)","v":"VP-111"},{"$f":"IFERROR(INDEX(ZoznamHodín[],MATCH(SUMPRODUCT((ZoznamHodín[DEŇ]=RozvrhHodín[[#Headers],[UTOROK]])*(ROUNDDOWN($B39,10)>=ROUNDDOWN(ZoznamHodín[ČAS ZAČATIA],10))*($B39<=ZoznamHodín[ČAS UKONČENIA]),ZoznamHodín[JEDINEČNÉ]),ZoznamHodín[JEDINEČNÉ],0),2),0)","v":0},{"$f":"IFERROR(INDEX(ZoznamHodín[],MATCH(SUMPRODUCT((ZoznamHodín[DEŇ]=RozvrhHodín[[#Headers],[STREDA]])*(ROUNDDOWN($B39,10)>=ROUNDDOWN(ZoznamHodín[ČAS ZAČATIA],10))*($B39<=ZoznamHodín[ČAS UKONČENIA]),ZoznamHodín[JEDINEČNÉ]),ZoznamHodín[JEDINEČNÉ],0),2),0)","v":0},{"$f":"IFERROR(INDEX(ZoznamHodín[],MATCH(SUMPRODUCT((ZoznamHodín[DEŇ]=RozvrhHodín[[#Headers],[ŠTVRTOK]])*(ROUNDDOWN($B39,10)>=ROUNDDOWN(ZoznamHodín[ČAS ZAČATIA],10))*($B39<=ZoznamHodín[ČAS UKONČENIA]),ZoznamHodín[JEDINEČNÉ]),ZoznamHodín[JEDINEČNÉ],0),2),0)","v":0},{"$f":"IFERROR(INDEX(ZoznamHodín[],MATCH(SUMPRODUCT((ZoznamHodín[DEŇ]=RozvrhHodín[[#Headers],[PIATOK]])*(ROUNDDOWN($B39,10)>=ROUNDDOWN(ZoznamHodín[ČAS ZAČATIA],10))*($B39<=ZoznamHodín[ČAS UKONČENIA]),ZoznamHodín[JEDINEČNÉ]),ZoznamHodín[JEDINEČNÉ],0),2),0)","v":0},{"$f":"IFERROR(INDEX(ZoznamHodín[],MATCH(SUMPRODUCT((ZoznamHodín[DEŇ]=RozvrhHodín[[#Headers],[SOBOTA]])*(ROUNDDOWN($B39,10)>=ROUNDDOWN(ZoznamHodín[ČAS ZAČATIA],10))*($B39<=ZoznamHodín[ČAS UKONČENIA]),ZoznamHodín[JEDINEČNÉ]),ZoznamHodín[JEDINEČNÉ],0),2),0)","v":0}]
[null,"17:00:00",{"$f":"IFERROR(INDEX(ZoznamHodín[],MATCH(SUMPRODUCT((ZoznamHodín[DEŇ]=RozvrhHodín[[#Headers],[NEDEĽA]])*(ROUNDDOWN($B40,10)>=ROUNDDOWN(ZoznamHodín[ČAS ZAČATIA],10))*($B40<=ZoznamHodín[ČAS UKONČENIA]),ZoznamHodín[JEDINEČNÉ]),ZoznamHodín[JEDINEČNÉ],0),2),0)","v":0},{"$f":"IFERROR(INDEX(ZoznamHodín[],MATCH(SUMPRODUCT((ZoznamHodín[DEŇ]=RozvrhHodín[[#Headers],[PONDELOK]])*(ROUNDDOWN($B40,10)>=ROUNDDOWN(ZoznamHodín[ČAS ZAČATIA],10))*($B40<=ZoznamHodín[ČAS UKONČENIA]),ZoznamHodín[JEDINEČNÉ]),ZoznamHodín[JEDINEČNÉ],0),2),0)","v":"VP-111"},{"$f":"IFERROR(INDEX(ZoznamHodín[],MATCH(SUMPRODUCT((ZoznamHodín[DEŇ]=RozvrhHodín[[#Headers],[UTOROK]])*(ROUNDDOWN($B40,10)>=ROUNDDOWN(ZoznamHodín[ČAS ZAČATIA],10))*($B40<=ZoznamHodín[ČAS UKONČENIA]),ZoznamHodín[JEDINEČNÉ]),ZoznamHodín[JEDINEČNÉ],0),2),0)","v":0},{"$f":"IFERROR(INDEX(ZoznamHodín[],MATCH(SUMPRODUCT((ZoznamHodín[DEŇ]=RozvrhHodín[[#Headers],[STREDA]])*(ROUNDDOWN($B40,10)>=ROUNDDOWN(ZoznamHodín[ČAS ZAČATIA],10))*($B40<=ZoznamHodín[ČAS UKONČENIA]),ZoznamHodín[JEDINEČNÉ]),ZoznamHodín[JEDINEČNÉ],0),2),0)","v":0},{"$f":"IFERROR(INDEX(ZoznamHodín[],MATCH(SUMPRODUCT((ZoznamHodín[DEŇ]=RozvrhHodín[[#Headers],[ŠTVRTOK]])*(ROUNDDOWN($B40,10)>=ROUNDDOWN(ZoznamHodín[ČAS ZAČATIA],10))*($B40<=ZoznamHodín[ČAS UKONČENIA]),ZoznamHodín[JEDINEČNÉ]),ZoznamHodín[JEDINEČNÉ],0),2),0)","v":0},{"$f":"IFERROR(INDEX(ZoznamHodín[],MATCH(SUMPRODUCT((ZoznamHodín[DEŇ]=RozvrhHodín[[#Headers],[PIATOK]])*(ROUNDDOWN($B40,10)>=ROUNDDOWN(ZoznamHodín[ČAS ZAČATIA],10))*($B40<=ZoznamHodín[ČAS UKONČENIA]),ZoznamHodín[JEDINEČNÉ]),ZoznamHodín[JEDINEČNÉ],0),2),0)","v":0},{"$f":"IFERROR(INDEX(ZoznamHodín[],MATCH(SUMPRODUCT((ZoznamHodín[DEŇ]=RozvrhHodín[[#Headers],[SOBOTA]])*(ROUNDDOWN($B40,10)>=ROUNDDOWN(ZoznamHodín[ČAS ZAČATIA],10))*($B40<=ZoznamHodín[ČAS UKONČENIA]),ZoznamHodín[JEDINEČNÉ]),ZoznamHodín[JEDINEČNÉ],0),2),0)","v":0}]
[null,"17:15:00",{"$f":"IFERROR(INDEX(ZoznamHodín[],MATCH(SUMPRODUCT((ZoznamHodín[DEŇ]=RozvrhHodín[[#Headers],[NEDEĽA]])*(ROUNDDOWN($B41,10)>=ROUNDDOWN(ZoznamHodín[ČAS ZAČATIA],10))*($B41<=ZoznamHodín[ČAS UKONČENIA]),ZoznamHodín[JEDINEČNÉ]),ZoznamHodín[JEDINEČNÉ],0),2),0)","v":0},{"$f":"IFERROR(INDEX(ZoznamHodín[],MATCH(SUMPRODUCT((ZoznamHodín[DEŇ]=RozvrhHodín[[#Headers],[PONDELOK]])*(ROUNDDOWN($B41,10)>=ROUNDDOWN(ZoznamHodín[ČAS ZAČATIA],10))*($B41<=ZoznamHodín[ČAS UKONČENIA]),ZoznamHodín[JEDINEČNÉ]),ZoznamHodín[JEDINEČNÉ],0),2),0)","v":0},{"$f":"IFERROR(INDEX(ZoznamHodín[],MATCH(SUMPRODUCT((ZoznamHodín[DEŇ]=RozvrhHodín[[#Headers],[UTOROK]])*(ROUNDDOWN($B41,10)>=ROUNDDOWN(ZoznamHodín[ČAS ZAČATIA],10))*($B41<=ZoznamHodín[ČAS UKONČENIA]),ZoznamHodín[JEDINEČNÉ]),ZoznamHodín[JEDINEČNÉ],0),2),0)","v":0},{"$f":"IFERROR(INDEX(ZoznamHodín[],MATCH(SUMPRODUCT((ZoznamHodín[DEŇ]=RozvrhHodín[[#Headers],[STREDA]])*(ROUNDDOWN($B41,10)>=ROUNDDOWN(ZoznamHodín[ČAS ZAČATIA],10))*($B41<=ZoznamHodín[ČAS UKONČENIA]),ZoznamHodín[JEDINEČNÉ]),ZoznamHodín[JEDINEČNÉ],0),2),0)","v":0},{"$f":"IFERROR(INDEX(ZoznamHodín[],MATCH(SUMPRODUCT((ZoznamHodín[DEŇ]=RozvrhHodín[[#Headers],[ŠTVRTOK]])*(ROUNDDOWN($B41,10)>=ROUNDDOWN(ZoznamHodín[ČAS ZAČATIA],10))*($B41<=ZoznamHodín[ČAS UKONČENIA]),ZoznamHodín[JEDINEČNÉ]),ZoznamHodín[JEDINEČNÉ],0),2),0)","v":0},{"$f":"IFERROR(INDEX(ZoznamHodín[],MATCH(SUMPRODUCT((ZoznamHodín[DEŇ]=RozvrhHodín[[#Headers],[PIATOK]])*(ROUNDDOWN($B41,10)>=ROUNDDOWN(ZoznamHodín[ČAS ZAČATIA],10))*($B41<=ZoznamHodín[ČAS UKONČENIA]),ZoznamHodín[JEDINEČNÉ]),ZoznamHodín[JEDINEČNÉ],0),2),0)","v":0},{"$f":"IFERROR(INDEX(ZoznamHodín[],MATCH(SUMPRODUCT((ZoznamHodín[DEŇ]=RozvrhHodín[[#Headers],[SOBOTA]])*(ROUNDDOWN($B41,10)>=ROUNDDOWN(ZoznamHodín[ČAS ZAČATIA],10))*($B41<=ZoznamHodín[ČAS UKONČENIA]),ZoznamHodín[JEDINEČNÉ]),ZoznamHodín[JEDINEČNÉ],0),2),0)","v":0}]
[null,"17:30:00",{"$f":"IFERROR(INDEX(ZoznamHodín[],MATCH(SUMPRODUCT((ZoznamHodín[DEŇ]=RozvrhHodín[[#Headers],[NEDEĽA]])*(ROUNDDOWN($B42,10)>=ROUNDDOWN(ZoznamHodín[ČAS ZAČATIA],10))*($B42<=ZoznamHodín[ČAS UKONČENIA]),ZoznamHodín[JEDINEČNÉ]),ZoznamHodín[JEDINEČNÉ],0),2),0)","v":0},{"$f":"IFERROR(INDEX(ZoznamHodín[],MATCH(SUMPRODUCT((ZoznamHodín[DEŇ]=RozvrhHodín[[#Headers],[PONDELOK]])*(ROUNDDOWN($B42,10)>=ROUNDDOWN(ZoznamHodín[ČAS ZAČATIA],10))*($B42<=ZoznamHodín[ČAS UKONČENIA]),ZoznamHodín[JEDINEČNÉ]),ZoznamHodín[JEDINEČNÉ],0),2),0)","v":0},{"$f":"IFERROR(INDEX(ZoznamHodín[],MATCH(SUMPRODUCT((ZoznamHodín[DEŇ]=RozvrhHodín[[#Headers],[UTOROK]])*(ROUNDDOWN($B42,10)>=ROUNDDOWN(ZoznamHodín[ČAS ZAČATIA],10))*($B42<=ZoznamHodín[ČAS UKONČENIA]),ZoznamHodín[JEDINEČNÉ]),ZoznamHodín[JEDINEČNÉ],0),2),0)","v":0},{"$f":"IFERROR(INDEX(ZoznamHodín[],MATCH(SUMPRODUCT((ZoznamHodín[DEŇ]=RozvrhHodín[[#Headers],[STREDA]])*(ROUNDDOWN($B42,10)>=ROUNDDOWN(ZoznamHodín[ČAS ZAČATIA],10))*($B42<=ZoznamHodín[ČAS UKONČENIA]),ZoznamHodín[JEDINEČNÉ]),ZoznamHodín[JEDINEČNÉ],0),2),0)","v":0},{"$f":"IFERROR(INDEX(ZoznamHodín[],MATCH(SUMPRODUCT((ZoznamHodín[DEŇ]=RozvrhHodín[[#Headers],[ŠTVRTOK]])*(ROUNDDOWN($B42,10)>=ROUNDDOWN(ZoznamHodín[ČAS ZAČATIA],10))*($B42<=ZoznamHodín[ČAS UKONČENIA]),ZoznamHodín[JEDINEČNÉ]),ZoznamHodín[JEDINEČNÉ],0),2),0)","v":0},{"$f":"IFERROR(INDEX(ZoznamHodín[],MATCH(SUMPRODUCT((ZoznamHodín[DEŇ]=RozvrhHodín[[#Headers],[PIATOK]])*(ROUNDDOWN($B42,10)>=ROUNDDOWN(ZoznamHodín[ČAS ZAČATIA],10))*($B42<=ZoznamHodín[ČAS UKONČENIA]),ZoznamHodín[JEDINEČNÉ]),ZoznamHodín[JEDINEČNÉ],0),2),0)","v":0},{"$f":"IFERROR(INDEX(ZoznamHodín[],MATCH(SUMPRODUCT((ZoznamHodín[DEŇ]=RozvrhHodín[[#Headers],[SOBOTA]])*(ROUNDDOWN($B42,10)>=ROUNDDOWN(ZoznamHodín[ČAS ZAČATIA],10))*($B42<=ZoznamHodín[ČAS UKONČENIA]),ZoznamHodín[JEDINEČNÉ]),ZoznamHodín[JEDINEČNÉ],0),2),0)","v":0}]
[null,"17:45:00",{"$f":"IFERROR(INDEX(ZoznamHodín[],MATCH(SUMPRODUCT((ZoznamHodín[DEŇ]=RozvrhHodín[[#Headers],[NEDEĽA]])*(ROUNDDOWN($B43,10)>=ROUNDDOWN(ZoznamHodín[ČAS ZAČATIA],10))*($B43<=ZoznamHodín[ČAS UKONČENIA]),ZoznamHodín[JEDINEČNÉ]),ZoznamHodín[JEDINEČNÉ],0),2),0)","v":0},{"$f":"IFERROR(INDEX(ZoznamHodín[],MATCH(SUMPRODUCT((ZoznamHodín[DEŇ]=RozvrhHodín[[#Headers],[PONDELOK]])*(ROUNDDOWN($B43,10)>=ROUNDDOWN(ZoznamHodín[ČAS ZAČATIA],10))*($B43<=ZoznamHodín[ČAS UKONČENIA]),ZoznamHodín[JEDINEČNÉ]),ZoznamHodín[JEDINEČNÉ],0),2),0)","v":0},{"$f":"IFERROR(INDEX(ZoznamHodín[],MATCH(SUMPRODUCT((ZoznamHodín[DEŇ]=RozvrhHodín[[#Headers],[UTOROK]])*(ROUNDDOWN($B43,10)>=ROUNDDOWN(ZoznamHodín[ČAS ZAČATIA],10))*($B43<=ZoznamHodín[ČAS UKONČENIA]),ZoznamHodín[JEDINEČNÉ]),ZoznamHodín[JEDINEČNÉ],0),2),0)","v":0},{"$f":"IFERROR(INDEX(ZoznamHodín[],MATCH(SUMPRODUCT((ZoznamHodín[DEŇ]=RozvrhHodín[[#Headers],[STREDA]])*(ROUNDDOWN($B43,10)>=ROUNDDOWN(ZoznamHodín[ČAS ZAČATIA],10))*($B43<=ZoznamHodín[ČAS UKONČENIA]),ZoznamHodín[JEDINEČNÉ]),ZoznamHodín[JEDINEČNÉ],0),2),0)","v":0},{"$f":"IFERROR(INDEX(ZoznamHodín[],MATCH(SUMPRODUCT((ZoznamHodín[DEŇ]=RozvrhHodín[[#Headers],[ŠTVRTOK]])*(ROUNDDOWN($B43,10)>=ROUNDDOWN(ZoznamHodín[ČAS ZAČATIA],10))*($B43<=ZoznamHodín[ČAS UKONČENIA]),ZoznamHodín[JEDINEČNÉ]),ZoznamHodín[JEDINEČNÉ],0),2),0)","v":0},{"$f":"IFERROR(INDEX(ZoznamHodín[],MATCH(SUMPRODUCT((ZoznamHodín[DEŇ]=RozvrhHodín[[#Headers],[PIATOK]])*(ROUNDDOWN($B43,10)>=ROUNDDOWN(ZoznamHodín[ČAS ZAČATIA],10))*($B43<=ZoznamHodín[ČAS UKONČENIA]),ZoznamHodín[JEDINEČNÉ]),ZoznamHodín[JEDINEČNÉ],0),2),0)","v":0},{"$f":"IFERROR(INDEX(ZoznamHodín[],MATCH(SUMPRODUCT((ZoznamHodín[DEŇ]=RozvrhHodín[[#Headers],[SOBOTA]])*(ROUNDDOWN($B43,10)>=ROUNDDOWN(ZoznamHodín[ČAS ZAČATIA],10))*($B43<=ZoznamHodín[ČAS UKONČENIA]),ZoznamHodín[JEDINEČNÉ]),ZoznamHodín[JEDINEČNÉ],0),2),0)","v":0}]
[null,"18:00:00",{"$f":"IFERROR(INDEX(ZoznamHodín[],MATCH(SUMPRODUCT((ZoznamHodín[DEŇ]=RozvrhHodín[[#Headers],[NEDEĽA]])*(ROUNDDOWN($B44,10)>=ROUNDDOWN(ZoznamHodín[ČAS ZAČATIA],10))*($B44<=ZoznamHodín[ČAS UKONČENIA]),ZoznamHodín[JEDINEČNÉ]),ZoznamHodín[JEDINEČNÉ],0),2),0)","v":0},{"$f":"IFERROR(INDEX(ZoznamHodín[],MATCH(SUMPRODUCT((ZoznamHodín[DEŇ]=RozvrhHodín[[#Headers],[PONDELOK]])*(ROUNDDOWN($B44,10)>=ROUNDDOWN(ZoznamHodín[ČAS ZAČATIA],10))*($B44<=ZoznamHodín[ČAS UKONČENIA]),ZoznamHodín[JEDINEČNÉ]),ZoznamHodín[JEDINEČNÉ],0),2),0)","v":0},{"$f":"IFERROR(INDEX(ZoznamHodín[],MATCH(SUMPRODUCT((ZoznamHodín[DEŇ]=RozvrhHodín[[#Headers],[UTOROK]])*(ROUNDDOWN($B44,10)>=ROUNDDOWN(ZoznamHodín[ČAS ZAČATIA],10))*($B44<=ZoznamHodín[ČAS UKONČENIA]),ZoznamHodín[JEDINEČNÉ]),ZoznamHodín[JEDINEČNÉ],0),2),0)","v":0},{"$f":"IFERROR(INDEX(ZoznamHodín[],MATCH(SUMPRODUCT((ZoznamHodín[DEŇ]=RozvrhHodín[[#Headers],[STREDA]])*(ROUNDDOWN($B44,10)>=ROUNDDOWN(ZoznamHodín[ČAS ZAČATIA],10))*($B44<=ZoznamHodín[ČAS UKONČENIA]),ZoznamHodín[JEDINEČNÉ]),ZoznamHodín[JEDINEČNÉ],0),2),0)","v":0},{"$f":"IFERROR(INDEX(ZoznamHodín[],MATCH(SUMPRODUCT((ZoznamHodín[DEŇ]=RozvrhHodín[[#Headers],[ŠTVRTOK]])*(ROUNDDOWN($B44,10)>=ROUNDDOWN(ZoznamHodín[ČAS ZAČATIA],10))*($B44<=ZoznamHodín[ČAS UKONČENIA]),ZoznamHodín[JEDINEČNÉ]),ZoznamHodín[JEDINEČNÉ],0),2),0)","v":0},{"$f":"IFERROR(INDEX(ZoznamHodín[],MATCH(SUMPRODUCT((ZoznamHodín[DEŇ]=RozvrhHodín[[#Headers],[PIATOK]])*(ROUNDDOWN($B44,10)>=ROUNDDOWN(ZoznamHodín[ČAS ZAČATIA],10))*($B44<=ZoznamHodín[ČAS UKONČENIA]),ZoznamHodín[JEDINEČNÉ]),ZoznamHodín[JEDINEČNÉ],0),2),0)","v":0},{"$f":"IFERROR(INDEX(ZoznamHodín[],MATCH(SUMPRODUCT((ZoznamHodín[DEŇ]=RozvrhHodín[[#Headers],[SOBOTA]])*(ROUNDDOWN($B44,10)>=ROUNDDOWN(ZoznamHodín[ČAS ZAČATIA],10))*($B44<=ZoznamHodín[ČAS UKONČENIA]),ZoznamHodín[JEDINEČNÉ]),ZoznamHodín[JEDINEČNÉ],0),2),0)","v":0}]
[null,"18:15:00",{"$f":"IFERROR(INDEX(ZoznamHodín[],MATCH(SUMPRODUCT((ZoznamHodín[DEŇ]=RozvrhHodín[[#Headers],[NEDEĽA]])*(ROUNDDOWN($B45,10)>=ROUNDDOWN(ZoznamHodín[ČAS ZAČATIA],10))*($B45<=ZoznamHodín[ČAS UKONČENIA]),ZoznamHodín[JEDINEČNÉ]),ZoznamHodín[JEDINEČNÉ],0),2),0)","v":0},{"$f":"IFERROR(INDEX(ZoznamHodín[],MATCH(SUMPRODUCT((ZoznamHodín[DEŇ]=RozvrhHodín[[#Headers],[PONDELOK]])*(ROUNDDOWN($B45,10)>=ROUNDDOWN(ZoznamHodín[ČAS ZAČATIA],10))*($B45<=ZoznamHodín[ČAS UKONČENIA]),ZoznamHodín[JEDINEČNÉ]),ZoznamHodín[JEDINEČNÉ],0),2),0)","v":0},{"$f":"IFERROR(INDEX(ZoznamHodín[],MATCH(SUMPRODUCT((ZoznamHodín[DEŇ]=RozvrhHodín[[#Headers],[UTOROK]])*(ROUNDDOWN($B45,10)>=ROUNDDOWN(ZoznamHodín[ČAS ZAČATIA],10))*($B45<=ZoznamHodín[ČAS UKONČENIA]),ZoznamHodín[JEDINEČNÉ]),ZoznamHodín[JEDINEČNÉ],0),2),0)","v":0},{"$f":"IFERROR(INDEX(ZoznamHodín[],MATCH(SUMPRODUCT((ZoznamHodín[DEŇ]=RozvrhHodín[[#Headers],[STREDA]])*(ROUNDDOWN($B45,10)>=ROUNDDOWN(ZoznamHodín[ČAS ZAČATIA],10))*($B45<=ZoznamHodín[ČAS UKONČENIA]),ZoznamHodín[JEDINEČNÉ]),ZoznamHodín[JEDINEČNÉ],0),2),0)","v":0},{"$f":"IFERROR(INDEX(ZoznamHodín[],MATCH(SUMPRODUCT((ZoznamHodín[DEŇ]=RozvrhHodín[[#Headers],[ŠTVRTOK]])*(ROUNDDOWN($B45,10)>=ROUNDDOWN(ZoznamHodín[ČAS ZAČATIA],10))*($B45<=ZoznamHodín[ČAS UKONČENIA]),ZoznamHodín[JEDINEČNÉ]),ZoznamHodín[JEDINEČNÉ],0),2),0)","v":0},{"$f":"IFERROR(INDEX(ZoznamHodín[],MATCH(SUMPRODUCT((ZoznamHodín[DEŇ]=RozvrhHodín[[#Headers],[PIATOK]])*(ROUNDDOWN($B45,10)>=ROUNDDOWN(ZoznamHodín[ČAS ZAČATIA],10))*($B45<=ZoznamHodín[ČAS UKONČENIA]),ZoznamHodín[JEDINEČNÉ]),ZoznamHodín[JEDINEČNÉ],0),2),0)","v":0},{"$f":"IFERROR(INDEX(ZoznamHodín[],MATCH(SUMPRODUCT((ZoznamHodín[DEŇ]=RozvrhHodín[[#Headers],[SOBOTA]])*(ROUNDDOWN($B45,10)>=ROUNDDOWN(ZoznamHodín[ČAS ZAČATIA],10))*($B45<=ZoznamHodín[ČAS UKONČENIA]),ZoznamHodín[JEDINEČNÉ]),ZoznamHodín[JEDINEČNÉ],0),2),0)","v":0}]
[null,"18:30:00",{"$f":"IFERROR(INDEX(ZoznamHodín[],MATCH(SUMPRODUCT((ZoznamHodín[DEŇ]=RozvrhHodín[[#Headers],[NEDEĽA]])*(ROUNDDOWN($B46,10)>=ROUNDDOWN(ZoznamHodín[ČAS ZAČATIA],10))*($B46<=ZoznamHodín[ČAS UKONČENIA]),ZoznamHodín[JEDINEČNÉ]),ZoznamHodín[JEDINEČNÉ],0),2),0)","v":0},{"$f":"IFERROR(INDEX(ZoznamHodín[],MATCH(SUMPRODUCT((ZoznamHodín[DEŇ]=RozvrhHodín[[#Headers],[PONDELOK]])*(ROUNDDOWN($B46,10)>=ROUNDDOWN(ZoznamHodín[ČAS ZAČATIA],10))*($B46<=ZoznamHodín[ČAS UKONČENIA]),ZoznamHodín[JEDINEČNÉ]),ZoznamHodín[JEDINEČNÉ],0),2),0)","v":0},{"$f":"IFERROR(INDEX(ZoznamHodín[],MATCH(SUMPRODUCT((ZoznamHodín[DEŇ]=RozvrhHodín[[#Headers],[UTOROK]])*(ROUNDDOWN($B46,10)>=ROUNDDOWN(ZoznamHodín[ČAS ZAČATIA],10))*($B46<=ZoznamHodín[ČAS UKONČENIA]),ZoznamHodín[JEDINEČNÉ]),ZoznamHodín[JEDINEČNÉ],0),2),0)","v":0},{"$f":"IFERROR(INDEX(ZoznamHodín[],MATCH(SUMPRODUCT((ZoznamHodín[DEŇ]=RozvrhHodín[[#Headers],[STREDA]])*(ROUNDDOWN($B46,10)>=ROUNDDOWN(ZoznamHodín[ČAS ZAČATIA],10))*($B46<=ZoznamHodín[ČAS UKONČENIA]),ZoznamHodín[JEDINEČNÉ]),ZoznamHodín[JEDINEČNÉ],0),2),0)","v":0},{"$f":"IFERROR(INDEX(ZoznamHodín[],MATCH(SUMPRODUCT((ZoznamHodín[DEŇ]=RozvrhHodín[[#Headers],[ŠTVRTOK]])*(ROUNDDOWN($B46,10)>=ROUNDDOWN(ZoznamHodín[ČAS ZAČATIA],10))*($B46<=ZoznamHodín[ČAS UKONČENIA]),ZoznamHodín[JEDINEČNÉ]),ZoznamHodín[JEDINEČNÉ],0),2),0)","v":0},{"$f":"IFERROR(INDEX(ZoznamHodín[],MATCH(SUMPRODUCT((ZoznamHodín[DEŇ]=RozvrhHodín[[#Headers],[PIATOK]])*(ROUNDDOWN($B46,10)>=ROUNDDOWN(ZoznamHodín[ČAS ZAČATIA],10))*($B46<=ZoznamHodín[ČAS UKONČENIA]),ZoznamHodín[JEDINEČNÉ]),ZoznamHodín[JEDINEČNÉ],0),2),0)","v":0},{"$f":"IFERROR(INDEX(ZoznamHodín[],MATCH(SUMPRODUCT((ZoznamHodín[DEŇ]=RozvrhHodín[[#Headers],[SOBOTA]])*(ROUNDDOWN($B46,10)>=ROUNDDOWN(ZoznamHodín[ČAS ZAČATIA],10))*($B46<=ZoznamHodín[ČAS UKONČENIA]),ZoznamHodín[JEDINEČNÉ]),ZoznamHodín[JEDINEČNÉ],0),2),0)","v":0}]
[null,"18:45:00",{"$f":"IFERROR(INDEX(ZoznamHodín[],MATCH(SUMPRODUCT((ZoznamHodín[DEŇ]=RozvrhHodín[[#Headers],[NEDEĽA]])*(ROUNDDOWN($B47,10)>=ROUNDDOWN(ZoznamHodín[ČAS ZAČATIA],10))*($B47<=ZoznamHodín[ČAS UKONČENIA]),ZoznamHodín[JEDINEČNÉ]),ZoznamHodín[JEDINEČNÉ],0),2),0)","v":0},{"$f":"IFERROR(INDEX(ZoznamHodín[],MATCH(SUMPRODUCT((ZoznamHodín[DEŇ]=RozvrhHodín[[#Headers],[PONDELOK]])*(ROUNDDOWN($B47,10)>=ROUNDDOWN(ZoznamHodín[ČAS ZAČATIA],10))*($B47<=ZoznamHodín[ČAS UKONČENIA]),ZoznamHodín[JEDINEČNÉ]),ZoznamHodín[JEDINEČNÉ],0),2),0)","v":0},{"$f":"IFERROR(INDEX(ZoznamHodín[],MATCH(SUMPRODUCT((ZoznamHodín[DEŇ]=RozvrhHodín[[#Headers],[UTOROK]])*(ROUNDDOWN($B47,10)>=ROUNDDOWN(ZoznamHodín[ČAS ZAČATIA],10))*($B47<=ZoznamHodín[ČAS UKONČENIA]),ZoznamHodín[JEDINEČNÉ]),ZoznamHodín[JEDINEČNÉ],0),2),0)","v":0},{"$f":"IFERROR(INDEX(ZoznamHodín[],MATCH(SUMPRODUCT((ZoznamHodín[DEŇ]=RozvrhHodín[[#Headers],[STREDA]])*(ROUNDDOWN($B47,10)>=ROUNDDOWN(ZoznamHodín[ČAS ZAČATIA],10))*($B47<=ZoznamHodín[ČAS UKONČENIA]),ZoznamHodín[JEDINEČNÉ]),ZoznamHodín[JEDINEČNÉ],0),2),0)","v":0},{"$f":"IFERROR(INDEX(ZoznamHodín[],MATCH(SUMPRODUCT((ZoznamHodín[DEŇ]=RozvrhHodín[[#Headers],[ŠTVRTOK]])*(ROUNDDOWN($B47,10)>=ROUNDDOWN(ZoznamHodín[ČAS ZAČATIA],10))*($B47<=ZoznamHodín[ČAS UKONČENIA]),ZoznamHodín[JEDINEČNÉ]),ZoznamHodín[JEDINEČNÉ],0),2),0)","v":0},{"$f":"IFERROR(INDEX(ZoznamHodín[],MATCH(SUMPRODUCT((ZoznamHodín[DEŇ]=RozvrhHodín[[#Headers],[PIATOK]])*(ROUNDDOWN($B47,10)>=ROUNDDOWN(ZoznamHodín[ČAS ZAČATIA],10))*($B47<=ZoznamHodín[ČAS UKONČENIA]),ZoznamHodín[JEDINEČNÉ]),ZoznamHodín[JEDINEČNÉ],0),2),0)","v":0},{"$f":"IFERROR(INDEX(ZoznamHodín[],MATCH(SUMPRODUCT((ZoznamHodín[DEŇ]=RozvrhHodín[[#Headers],[SOBOTA]])*(ROUNDDOWN($B47,10)>=ROUNDDOWN(ZoznamHodín[ČAS ZAČATIA],10))*($B47<=ZoznamHodín[ČAS UKONČENIA]),ZoznamHodín[JEDINEČNÉ]),ZoznamHodín[JEDINEČNÉ],0),2),0)","v":0}]
[null,"19:00:00",{"$f":"IFERROR(INDEX(ZoznamHodín[],MATCH(SUMPRODUCT((ZoznamHodín[DEŇ]=RozvrhHodín[[#Headers],[NEDEĽA]])*(ROUNDDOWN($B48,10)>=ROUNDDOWN(ZoznamHodín[ČAS ZAČATIA],10))*($B48<=ZoznamHodín[ČAS UKONČENIA]),ZoznamHodín[JEDINEČNÉ]),ZoznamHodín[JEDINEČNÉ],0),2),0)","v":0},{"$f":"IFERROR(INDEX(ZoznamHodín[],MATCH(SUMPRODUCT((ZoznamHodín[DEŇ]=RozvrhHodín[[#Headers],[PONDELOK]])*(ROUNDDOWN($B48,10)>=ROUNDDOWN(ZoznamHodín[ČAS ZAČATIA],10))*($B48<=ZoznamHodín[ČAS UKONČENIA]),ZoznamHodín[JEDINEČNÉ]),ZoznamHodín[JEDINEČNÉ],0),2),0)","v":0},{"$f":"IFERROR(INDEX(ZoznamHodín[],MATCH(SUMPRODUCT((ZoznamHodín[DEŇ]=RozvrhHodín[[#Headers],[UTOROK]])*(ROUNDDOWN($B48,10)>=ROUNDDOWN(ZoznamHodín[ČAS ZAČATIA],10))*($B48<=ZoznamHodín[ČAS UKONČENIA]),ZoznamHodín[JEDINEČNÉ]),ZoznamHodín[JEDINEČNÉ],0),2),0)","v":0},{"$f":"IFERROR(INDEX(ZoznamHodín[],MATCH(SUMPRODUCT((ZoznamHodín[DEŇ]=RozvrhHodín[[#Headers],[STREDA]])*(ROUNDDOWN($B48,10)>=ROUNDDOWN(ZoznamHodín[ČAS ZAČATIA],10))*($B48<=ZoznamHodín[ČAS UKONČENIA]),ZoznamHodín[JEDINEČNÉ]),ZoznamHodín[JEDINEČNÉ],0),2),0)","v":0},{"$f":"IFERROR(INDEX(ZoznamHodín[],MATCH(SUMPRODUCT((ZoznamHodín[DEŇ]=RozvrhHodín[[#Headers],[ŠTVRTOK]])*(ROUNDDOWN($B48,10)>=ROUNDDOWN(ZoznamHodín[ČAS ZAČATIA],10))*($B48<=ZoznamHodín[ČAS UKONČENIA]),ZoznamHodín[JEDINEČNÉ]),ZoznamHodín[JEDINEČNÉ],0),2),0)","v":0},{"$f":"IFERROR(INDEX(ZoznamHodín[],MATCH(SUMPRODUCT((ZoznamHodín[DEŇ]=RozvrhHodín[[#Headers],[PIATOK]])*(ROUNDDOWN($B48,10)>=ROUNDDOWN(ZoznamHodín[ČAS ZAČATIA],10))*($B48<=ZoznamHodín[ČAS UKONČENIA]),ZoznamHodín[JEDINEČNÉ]),ZoznamHodín[JEDINEČNÉ],0),2),0)","v":0},{"$f":"IFERROR(INDEX(ZoznamHodín[],MATCH(SUMPRODUCT((ZoznamHodín[DEŇ]=RozvrhHodín[[#Headers],[SOBOTA]])*(ROUNDDOWN($B48,10)>=ROUNDDOWN(ZoznamHodín[ČAS ZAČATIA],10))*($B48<=ZoznamHodín[ČAS UKONČENIA]),ZoznamHodín[JEDINEČNÉ]),ZoznamHodín[JEDINEČNÉ],0),2),0)","v":0}]
[null,"19:15:00",{"$f":"IFERROR(INDEX(ZoznamHodín[],MATCH(SUMPRODUCT((ZoznamHodín[DEŇ]=RozvrhHodín[[#Headers],[NEDEĽA]])*(ROUNDDOWN($B49,10)>=ROUNDDOWN(ZoznamHodín[ČAS ZAČATIA],10))*($B49<=ZoznamHodín[ČAS UKONČENIA]),ZoznamHodín[JEDINEČNÉ]),ZoznamHodín[JEDINEČNÉ],0),2),0)","v":0},{"$f":"IFERROR(INDEX(ZoznamHodín[],MATCH(SUMPRODUCT((ZoznamHodín[DEŇ]=RozvrhHodín[[#Headers],[PONDELOK]])*(ROUNDDOWN($B49,10)>=ROUNDDOWN(ZoznamHodín[ČAS ZAČATIA],10))*($B49<=ZoznamHodín[ČAS UKONČENIA]),ZoznamHodín[JEDINEČNÉ]),ZoznamHodín[JEDINEČNÉ],0),2),0)","v":0},{"$f":"IFERROR(INDEX(ZoznamHodín[],MATCH(SUMPRODUCT((ZoznamHodín[DEŇ]=RozvrhHodín[[#Headers],[UTOROK]])*(ROUNDDOWN($B49,10)>=ROUNDDOWN(ZoznamHodín[ČAS ZAČATIA],10))*($B49<=ZoznamHodín[ČAS UKONČENIA]),ZoznamHodín[JEDINEČNÉ]),ZoznamHodín[JEDINEČNÉ],0),2),0)","v":0},{"$f":"IFERROR(INDEX(ZoznamHodín[],MATCH(SUMPRODUCT((ZoznamHodín[DEŇ]=RozvrhHodín[[#Headers],[STREDA]])*(ROUNDDOWN($B49,10)>=ROUNDDOWN(ZoznamHodín[ČAS ZAČATIA],10))*($B49<=ZoznamHodín[ČAS UKONČENIA]),ZoznamHodín[JEDINEČNÉ]),ZoznamHodín[JEDINEČNÉ],0),2),0)","v":0},{"$f":"IFERROR(INDEX(ZoznamHodín[],MATCH(SUMPRODUCT((ZoznamHodín[DEŇ]=RozvrhHodín[[#Headers],[ŠTVRTOK]])*(ROUNDDOWN($B49,10)>=ROUNDDOWN(ZoznamHodín[ČAS ZAČATIA],10))*($B49<=ZoznamHodín[ČAS UKONČENIA]),ZoznamHodín[JEDINEČNÉ]),ZoznamHodín[JEDINEČNÉ],0),2),0)","v":0},{"$f":"IFERROR(INDEX(ZoznamHodín[],MATCH(SUMPRODUCT((ZoznamHodín[DEŇ]=RozvrhHodín[[#Headers],[PIATOK]])*(ROUNDDOWN($B49,10)>=ROUNDDOWN(ZoznamHodín[ČAS ZAČATIA],10))*($B49<=ZoznamHodín[ČAS UKONČENIA]),ZoznamHodín[JEDINEČNÉ]),ZoznamHodín[JEDINEČNÉ],0),2),0)","v":0},{"$f":"IFERROR(INDEX(ZoznamHodín[],MATCH(SUMPRODUCT((ZoznamHodín[DEŇ]=RozvrhHodín[[#Headers],[SOBOTA]])*(ROUNDDOWN($B49,10)>=ROUNDDOWN(ZoznamHodín[ČAS ZAČATIA],10))*($B49<=ZoznamHodín[ČAS UKONČENIA]),ZoznamHodín[JEDINEČNÉ]),ZoznamHodín[JEDINEČNÉ],0),2),0)","v":0}]
[null,"19:30:00",{"$f":"IFERROR(INDEX(ZoznamHodín[],MATCH(SUMPRODUCT((ZoznamHodín[DEŇ]=RozvrhHodín[[#Headers],[NEDEĽA]])*(ROUNDDOWN($B50,10)>=ROUNDDOWN(ZoznamHodín[ČAS ZAČATIA],10))*($B50<=ZoznamHodín[ČAS UKONČENIA]),ZoznamHodín[JEDINEČNÉ]),ZoznamHodín[JEDINEČNÉ],0),2),0)","v":0},{"$f":"IFERROR(INDEX(ZoznamHodín[],MATCH(SUMPRODUCT((ZoznamHodín[DEŇ]=RozvrhHodín[[#Headers],[PONDELOK]])*(ROUNDDOWN($B50,10)>=ROUNDDOWN(ZoznamHodín[ČAS ZAČATIA],10))*($B50<=ZoznamHodín[ČAS UKONČENIA]),ZoznamHodín[JEDINEČNÉ]),ZoznamHodín[JEDINEČNÉ],0),2),0)","v":0},{"$f":"IFERROR(INDEX(ZoznamHodín[],MATCH(SUMPRODUCT((ZoznamHodín[DEŇ]=RozvrhHodín[[#Headers],[UTOROK]])*(ROUNDDOWN($B50,10)>=ROUNDDOWN(ZoznamHodín[ČAS ZAČATIA],10))*($B50<=ZoznamHodín[ČAS UKONČENIA]),ZoznamHodín[JEDINEČNÉ]),ZoznamHodín[JEDINEČNÉ],0),2),0)","v":0},{"$f":"IFERROR(INDEX(ZoznamHodín[],MATCH(SUMPRODUCT((ZoznamHodín[DEŇ]=RozvrhHodín[[#Headers],[STREDA]])*(ROUNDDOWN($B50,10)>=ROUNDDOWN(ZoznamHodín[ČAS ZAČATIA],10))*($B50<=ZoznamHodín[ČAS UKONČENIA]),ZoznamHodín[JEDINEČNÉ]),ZoznamHodín[JEDINEČNÉ],0),2),0)","v":0},{"$f":"IFERROR(INDEX(ZoznamHodín[],MATCH(SUMPRODUCT((ZoznamHodín[DEŇ]=RozvrhHodín[[#Headers],[ŠTVRTOK]])*(ROUNDDOWN($B50,10)>=ROUNDDOWN(ZoznamHodín[ČAS ZAČATIA],10))*($B50<=ZoznamHodín[ČAS UKONČENIA]),ZoznamHodín[JEDINEČNÉ]),ZoznamHodín[JEDINEČNÉ],0),2),0)","v":0},{"$f":"IFERROR(INDEX(ZoznamHodín[],MATCH(SUMPRODUCT((ZoznamHodín[DEŇ]=RozvrhHodín[[#Headers],[PIATOK]])*(ROUNDDOWN($B50,10)>=ROUNDDOWN(ZoznamHodín[ČAS ZAČATIA],10))*($B50<=ZoznamHodín[ČAS UKONČENIA]),ZoznamHodín[JEDINEČNÉ]),ZoznamHodín[JEDINEČNÉ],0),2),0)","v":0},{"$f":"IFERROR(INDEX(ZoznamHodín[],MATCH(SUMPRODUCT((ZoznamHodín[DEŇ]=RozvrhHodín[[#Headers],[SOBOTA]])*(ROUNDDOWN($B50,10)>=ROUNDDOWN(ZoznamHodín[ČAS ZAČATIA],10))*($B50<=ZoznamHodín[ČAS UKONČENIA]),ZoznamHodín[JEDINEČNÉ]),ZoznamHodín[JEDINEČNÉ],0),2),0)","v":0}]
[null,"19:45:00",{"$f":"IFERROR(INDEX(ZoznamHodín[],MATCH(SUMPRODUCT((ZoznamHodín[DEŇ]=RozvrhHodín[[#Headers],[NEDEĽA]])*(ROUNDDOWN($B51,10)>=ROUNDDOWN(ZoznamHodín[ČAS ZAČATIA],10))*($B51<=ZoznamHodín[ČAS UKONČENIA]),ZoznamHodín[JEDINEČNÉ]),ZoznamHodín[JEDINEČNÉ],0),2),0)","v":0},{"$f":"IFERROR(INDEX(ZoznamHodín[],MATCH(SUMPRODUCT((ZoznamHodín[DEŇ]=RozvrhHodín[[#Headers],[PONDELOK]])*(ROUNDDOWN($B51,10)>=ROUNDDOWN(ZoznamHodín[ČAS ZAČATIA],10))*($B51<=ZoznamHodín[ČAS UKONČENIA]),ZoznamHodín[JEDINEČNÉ]),ZoznamHodín[JEDINEČNÉ],0),2),0)","v":0},{"$f":"IFERROR(INDEX(ZoznamHodín[],MATCH(SUMPRODUCT((ZoznamHodín[DEŇ]=RozvrhHodín[[#Headers],[UTOROK]])*(ROUNDDOWN($B51,10)>=ROUNDDOWN(ZoznamHodín[ČAS ZAČATIA],10))*($B51<=ZoznamHodín[ČAS UKONČENIA]),ZoznamHodín[JEDINEČNÉ]),ZoznamHodín[JEDINEČNÉ],0),2),0)","v":0},{"$f":"IFERROR(INDEX(ZoznamHodín[],MATCH(SUMPRODUCT((ZoznamHodín[DEŇ]=RozvrhHodín[[#Headers],[STREDA]])*(ROUNDDOWN($B51,10)>=ROUNDDOWN(ZoznamHodín[ČAS ZAČATIA],10))*($B51<=ZoznamHodín[ČAS UKONČENIA]),ZoznamHodín[JEDINEČNÉ]),ZoznamHodín[JEDINEČNÉ],0),2),0)","v":0},{"$f":"IFERROR(INDEX(ZoznamHodín[],MATCH(SUMPRODUCT((ZoznamHodín[DEŇ]=RozvrhHodín[[#Headers],[ŠTVRTOK]])*(ROUNDDOWN($B51,10)>=ROUNDDOWN(ZoznamHodín[ČAS ZAČATIA],10))*($B51<=ZoznamHodín[ČAS UKONČENIA]),ZoznamHodín[JEDINEČNÉ]),ZoznamHodín[JEDINEČNÉ],0),2),0)","v":0},{"$f":"IFERROR(INDEX(ZoznamHodín[],MATCH(SUMPRODUCT((ZoznamHodín[DEŇ]=RozvrhHodín[[#Headers],[PIATOK]])*(ROUNDDOWN($B51,10)>=ROUNDDOWN(ZoznamHodín[ČAS ZAČATIA],10))*($B51<=ZoznamHodín[ČAS UKONČENIA]),ZoznamHodín[JEDINEČNÉ]),ZoznamHodín[JEDINEČNÉ],0),2),0)","v":0},{"$f":"IFERROR(INDEX(ZoznamHodín[],MATCH(SUMPRODUCT((ZoznamHodín[DEŇ]=RozvrhHodín[[#Headers],[SOBOTA]])*(ROUNDDOWN($B51,10)>=ROUNDDOWN(ZoznamHodín[ČAS ZAČATIA],10))*($B51<=ZoznamHodín[ČAS UKONČENIA]),ZoznamHodín[JEDINEČNÉ]),ZoznamHodín[JEDINEČNÉ],0),2),0)","v":0}]
[null,"20:00:00",{"$f":"IFERROR(INDEX(ZoznamHodín[],MATCH(SUMPRODUCT((ZoznamHodín[DEŇ]=RozvrhHodín[[#Headers],[NEDEĽA]])*(ROUNDDOWN($B52,10)>=ROUNDDOWN(ZoznamHodín[ČAS ZAČATIA],10))*($B52<=ZoznamHodín[ČAS UKONČENIA]),ZoznamHodín[JEDINEČNÉ]),ZoznamHodín[JEDINEČNÉ],0),2),0)","v":0},{"$f":"IFERROR(INDEX(ZoznamHodín[],MATCH(SUMPRODUCT((ZoznamHodín[DEŇ]=RozvrhHodín[[#Headers],[PONDELOK]])*(ROUNDDOWN($B52,10)>=ROUNDDOWN(ZoznamHodín[ČAS ZAČATIA],10))*($B52<=ZoznamHodín[ČAS UKONČENIA]),ZoznamHodín[JEDINEČNÉ]),ZoznamHodín[JEDINEČNÉ],0),2),0)","v":0},{"$f":"IFERROR(INDEX(ZoznamHodín[],MATCH(SUMPRODUCT((ZoznamHodín[DEŇ]=RozvrhHodín[[#Headers],[UTOROK]])*(ROUNDDOWN($B52,10)>=ROUNDDOWN(ZoznamHodín[ČAS ZAČATIA],10))*($B52<=ZoznamHodín[ČAS UKONČENIA]),ZoznamHodín[JEDINEČNÉ]),ZoznamHodín[JEDINEČNÉ],0),2),0)","v":0},{"$f":"IFERROR(INDEX(ZoznamHodín[],MATCH(SUMPRODUCT((ZoznamHodín[DEŇ]=RozvrhHodín[[#Headers],[STREDA]])*(ROUNDDOWN($B52,10)>=ROUNDDOWN(ZoznamHodín[ČAS ZAČATIA],10))*($B52<=ZoznamHodín[ČAS UKONČENIA]),ZoznamHodín[JEDINEČNÉ]),ZoznamHodín[JEDINEČNÉ],0),2),0)","v":0},{"$f":"IFERROR(INDEX(ZoznamHodín[],MATCH(SUMPRODUCT((ZoznamHodín[DEŇ]=RozvrhHodín[[#Headers],[ŠTVRTOK]])*(ROUNDDOWN($B52,10)>=ROUNDDOWN(ZoznamHodín[ČAS ZAČATIA],10))*($B52<=ZoznamHodín[ČAS UKONČENIA]),ZoznamHodín[JEDINEČNÉ]),ZoznamHodín[JEDINEČNÉ],0),2),0)","v":0},{"$f":"IFERROR(INDEX(ZoznamHodín[],MATCH(SUMPRODUCT((ZoznamHodín[DEŇ]=RozvrhHodín[[#Headers],[PIATOK]])*(ROUNDDOWN($B52,10)>=ROUNDDOWN(ZoznamHodín[ČAS ZAČATIA],10))*($B52<=ZoznamHodín[ČAS UKONČENIA]),ZoznamHodín[JEDINEČNÉ]),ZoznamHodín[JEDINEČNÉ],0),2),0)","v":0},{"$f":"IFERROR(INDEX(ZoznamHodín[],MATCH(SUMPRODUCT((ZoznamHodín[DEŇ]=RozvrhHodín[[#Headers],[SOBOTA]])*(ROUNDDOWN($B52,10)>=ROUNDDOWN(ZoznamHodín[ČAS ZAČATIA],10))*($B52<=ZoznamHodín[ČAS UKONČENIA]),ZoznamHodín[JEDINEČNÉ]),ZoznamHodín[JEDINEČNÉ],0),2),0)","v":0}]
[null,"20:15:00",{"$f":"IFERROR(INDEX(ZoznamHodín[],MATCH(SUMPRODUCT((ZoznamHodín[DEŇ]=RozvrhHodín[[#Headers],[NEDEĽA]])*(ROUNDDOWN($B53,10)>=ROUNDDOWN(ZoznamHodín[ČAS ZAČATIA],10))*($B53<=ZoznamHodín[ČAS UKONČENIA]),ZoznamHodín[JEDINEČNÉ]),ZoznamHodín[JEDINEČNÉ],0),2),0)","v":0},{"$f":"IFERROR(INDEX(ZoznamHodín[],MATCH(SUMPRODUCT((ZoznamHodín[DEŇ]=RozvrhHodín[[#Headers],[PONDELOK]])*(ROUNDDOWN($B53,10)>=ROUNDDOWN(ZoznamHodín[ČAS ZAČATIA],10))*($B53<=ZoznamHodín[ČAS UKONČENIA]),ZoznamHodín[JEDINEČNÉ]),ZoznamHodín[JEDINEČNÉ],0),2),0)","v":0},{"$f":"IFERROR(INDEX(ZoznamHodín[],MATCH(SUMPRODUCT((ZoznamHodín[DEŇ]=RozvrhHodín[[#Headers],[UTOROK]])*(ROUNDDOWN($B53,10)>=ROUNDDOWN(ZoznamHodín[ČAS ZAČATIA],10))*($B53<=ZoznamHodín[ČAS UKONČENIA]),ZoznamHodín[JEDINEČNÉ]),ZoznamHodín[JEDINEČNÉ],0),2),0)","v":0},{"$f":"IFERROR(INDEX(ZoznamHodín[],MATCH(SUMPRODUCT((ZoznamHodín[DEŇ]=RozvrhHodín[[#Headers],[STREDA]])*(ROUNDDOWN($B53,10)>=ROUNDDOWN(ZoznamHodín[ČAS ZAČATIA],10))*($B53<=ZoznamHodín[ČAS UKONČENIA]),ZoznamHodín[JEDINEČNÉ]),ZoznamHodín[JEDINEČNÉ],0),2),0)","v":0},{"$f":"IFERROR(INDEX(ZoznamHodín[],MATCH(SUMPRODUCT((ZoznamHodín[DEŇ]=RozvrhHodín[[#Headers],[ŠTVRTOK]])*(ROUNDDOWN($B53,10)>=ROUNDDOWN(ZoznamHodín[ČAS ZAČATIA],10))*($B53<=ZoznamHodín[ČAS UKONČENIA]),ZoznamHodín[JEDINEČNÉ]),ZoznamHodín[JEDINEČNÉ],0),2),0)","v":0},{"$f":"IFERROR(INDEX(ZoznamHodín[],MATCH(SUMPRODUCT((ZoznamHodín[DEŇ]=RozvrhHodín[[#Headers],[PIATOK]])*(ROUNDDOWN($B53,10)>=ROUNDDOWN(ZoznamHodín[ČAS ZAČATIA],10))*($B53<=ZoznamHodín[ČAS UKONČENIA]),ZoznamHodín[JEDINEČNÉ]),ZoznamHodín[JEDINEČNÉ],0),2),0)","v":0},{"$f":"IFERROR(INDEX(ZoznamHodín[],MATCH(SUMPRODUCT((ZoznamHodín[DEŇ]=RozvrhHodín[[#Headers],[SOBOTA]])*(ROUNDDOWN($B53,10)>=ROUNDDOWN(ZoznamHodín[ČAS ZAČATIA],10))*($B53<=ZoznamHodín[ČAS UKONČENIA]),ZoznamHodín[JEDINEČNÉ]),ZoznamHodín[JEDINEČNÉ],0),2),0)","v":0}]
[null,"20:30:00",{"$f":"IFERROR(INDEX(ZoznamHodín[],MATCH(SUMPRODUCT((ZoznamHodín[DEŇ]=RozvrhHodín[[#Headers],[NEDEĽA]])*(ROUNDDOWN($B54,10)>=ROUNDDOWN(ZoznamHodín[ČAS ZAČATIA],10))*($B54<=ZoznamHodín[ČAS UKONČENIA]),ZoznamHodín[JEDINEČNÉ]),ZoznamHodín[JEDINEČNÉ],0),2),0)","v":0},{"$f":"IFERROR(INDEX(ZoznamHodín[],MATCH(SUMPRODUCT((ZoznamHodín[DEŇ]=RozvrhHodín[[#Headers],[PONDELOK]])*(ROUNDDOWN($B54,10)>=ROUNDDOWN(ZoznamHodín[ČAS ZAČATIA],10))*($B54<=ZoznamHodín[ČAS UKONČENIA]),ZoznamHodín[JEDINEČNÉ]),ZoznamHodín[JEDINEČNÉ],0),2),0)","v":0},{"$f":"IFERROR(INDEX(ZoznamHodín[],MATCH(SUMPRODUCT((ZoznamHodín[DEŇ]=RozvrhHodín[[#Headers],[UTOROK]])*(ROUNDDOWN($B54,10)>=ROUNDDOWN(ZoznamHodín[ČAS ZAČATIA],10))*($B54<=ZoznamHodín[ČAS UKONČENIA]),ZoznamHodín[JEDINEČNÉ]),ZoznamHodín[JEDINEČNÉ],0),2),0)","v":0},{"$f":"IFERROR(INDEX(ZoznamHodín[],MATCH(SUMPRODUCT((ZoznamHodín[DEŇ]=RozvrhHodín[[#Headers],[STREDA]])*(ROUNDDOWN($B54,10)>=ROUNDDOWN(ZoznamHodín[ČAS ZAČATIA],10))*($B54<=ZoznamHodín[ČAS UKONČENIA]),ZoznamHodín[JEDINEČNÉ]),ZoznamHodín[JEDINEČNÉ],0),2),0)","v":0},{"$f":"IFERROR(INDEX(ZoznamHodín[],MATCH(SUMPRODUCT((ZoznamHodín[DEŇ]=RozvrhHodín[[#Headers],[ŠTVRTOK]])*(ROUNDDOWN($B54,10)>=ROUNDDOWN(ZoznamHodín[ČAS ZAČATIA],10))*($B54<=ZoznamHodín[ČAS UKONČENIA]),ZoznamHodín[JEDINEČNÉ]),ZoznamHodín[JEDINEČNÉ],0),2),0)","v":0},{"$f":"IFERROR(INDEX(ZoznamHodín[],MATCH(SUMPRODUCT((ZoznamHodín[DEŇ]=RozvrhHodín[[#Headers],[PIATOK]])*(ROUNDDOWN($B54,10)>=ROUNDDOWN(ZoznamHodín[ČAS ZAČATIA],10))*($B54<=ZoznamHodín[ČAS UKONČENIA]),ZoznamHodín[JEDINEČNÉ]),ZoznamHodín[JEDINEČNÉ],0),2),0)","v":0},{"$f":"IFERROR(INDEX(ZoznamHodín[],MATCH(SUMPRODUCT((ZoznamHodín[DEŇ]=RozvrhHodín[[#Headers],[SOBOTA]])*(ROUNDDOWN($B54,10)>=ROUNDDOWN(ZoznamHodín[ČAS ZAČATIA],10))*($B54<=ZoznamHodín[ČAS UKONČENIA]),ZoznamHodín[JEDINEČNÉ]),ZoznamHodín[JEDINEČNÉ],0),2),0)","v":0}]
[null,"20:45:00",{"$f":"IFERROR(INDEX(ZoznamHodín[],MATCH(SUMPRODUCT((ZoznamHodín[DEŇ]=RozvrhHodín[[#Headers],[NEDEĽA]])*(ROUNDDOWN($B55,10)>=ROUNDDOWN(ZoznamHodín[ČAS ZAČATIA],10))*($B55<=ZoznamHodín[ČAS UKONČENIA]),ZoznamHodín[JEDINEČNÉ]),ZoznamHodín[JEDINEČNÉ],0),2),0)","v":0},{"$f":"IFERROR(INDEX(ZoznamHodín[],MATCH(SUMPRODUCT((ZoznamHodín[DEŇ]=RozvrhHodín[[#Headers],[PONDELOK]])*(ROUNDDOWN($B55,10)>=ROUNDDOWN(ZoznamHodín[ČAS ZAČATIA],10))*($B55<=ZoznamHodín[ČAS UKONČENIA]),ZoznamHodín[JEDINEČNÉ]),ZoznamHodín[JEDINEČNÉ],0),2),0)","v":0},{"$f":"IFERROR(INDEX(ZoznamHodín[],MATCH(SUMPRODUCT((ZoznamHodín[DEŇ]=RozvrhHodín[[#Headers],[UTOROK]])*(ROUNDDOWN($B55,10)>=ROUNDDOWN(ZoznamHodín[ČAS ZAČATIA],10))*($B55<=ZoznamHodín[ČAS UKONČENIA]),ZoznamHodín[JEDINEČNÉ]),ZoznamHodín[JEDINEČNÉ],0),2),0)","v":0},{"$f":"IFERROR(INDEX(ZoznamHodín[],MATCH(SUMPRODUCT((ZoznamHodín[DEŇ]=RozvrhHodín[[#Headers],[STREDA]])*(ROUNDDOWN($B55,10)>=ROUNDDOWN(ZoznamHodín[ČAS ZAČATIA],10))*($B55<=ZoznamHodín[ČAS UKONČENIA]),ZoznamHodín[JEDINEČNÉ]),ZoznamHodín[JEDINEČNÉ],0),2),0)","v":0},{"$f":"IFERROR(INDEX(ZoznamHodín[],MATCH(SUMPRODUCT((ZoznamHodín[DEŇ]=RozvrhHodín[[#Headers],[ŠTVRTOK]])*(ROUNDDOWN($B55,10)>=ROUNDDOWN(ZoznamHodín[ČAS ZAČATIA],10))*($B55<=ZoznamHodín[ČAS UKONČENIA]),ZoznamHodín[JEDINEČNÉ]),ZoznamHodín[JEDINEČNÉ],0),2),0)","v":0},{"$f":"IFERROR(INDEX(ZoznamHodín[],MATCH(SUMPRODUCT((ZoznamHodín[DEŇ]=RozvrhHodín[[#Headers],[PIATOK]])*(ROUNDDOWN($B55,10)>=ROUNDDOWN(ZoznamHodín[ČAS ZAČATIA],10))*($B55<=ZoznamHodín[ČAS UKONČENIA]),ZoznamHodín[JEDINEČNÉ]),ZoznamHodín[JEDINEČNÉ],0),2),0)","v":0},{"$f":"IFERROR(INDEX(ZoznamHodín[],MATCH(SUMPRODUCT((ZoznamHodín[DEŇ]=RozvrhHodín[[#Headers],[SOBOTA]])*(ROUNDDOWN($B55,10)>=ROUNDDOWN(ZoznamHodín[ČAS ZAČATIA],10))*($B55<=ZoznamHodín[ČAS UKONČENIA]),ZoznamHodín[JEDINEČNÉ]),ZoznamHodín[JEDINEČNÉ],0),2),0)","v":0}]
[null,"21:00:00",{"$f":"IFERROR(INDEX(ZoznamHodín[],MATCH(SUMPRODUCT((ZoznamHodín[DEŇ]=RozvrhHodín[[#Headers],[NEDEĽA]])*(ROUNDDOWN($B56,10)>=ROUNDDOWN(ZoznamHodín[ČAS ZAČATIA],10))*($B56<=ZoznamHodín[ČAS UKONČENIA]),ZoznamHodín[JEDINEČNÉ]),ZoznamHodín[JEDINEČNÉ],0),2),0)","v":0},{"$f":"IFERROR(INDEX(ZoznamHodín[],MATCH(SUMPRODUCT((ZoznamHodín[DEŇ]=RozvrhHodín[[#Headers],[PONDELOK]])*(ROUNDDOWN($B56,10)>=ROUNDDOWN(ZoznamHodín[ČAS ZAČATIA],10))*($B56<=ZoznamHodín[ČAS UKONČENIA]),ZoznamHodín[JEDINEČNÉ]),ZoznamHodín[JEDINEČNÉ],0),2),0)","v":0},{"$f":"IFERROR(INDEX(ZoznamHodín[],MATCH(SUMPRODUCT((ZoznamHodín[DEŇ]=RozvrhHodín[[#Headers],[UTOROK]])*(ROUNDDOWN($B56,10)>=ROUNDDOWN(ZoznamHodín[ČAS ZAČATIA],10))*($B56<=ZoznamHodín[ČAS UKONČENIA]),ZoznamHodín[JEDINEČNÉ]),ZoznamHodín[JEDINEČNÉ],0),2),0)","v":0},{"$f":"IFERROR(INDEX(ZoznamHodín[],MATCH(SUMPRODUCT((ZoznamHodín[DEŇ]=RozvrhHodín[[#Headers],[STREDA]])*(ROUNDDOWN($B56,10)>=ROUNDDOWN(ZoznamHodín[ČAS ZAČATIA],10))*($B56<=ZoznamHodín[ČAS UKONČENIA]),ZoznamHodín[JEDINEČNÉ]),ZoznamHodín[JEDINEČNÉ],0),2),0)","v":0},{"$f":"IFERROR(INDEX(ZoznamHodín[],MATCH(SUMPRODUCT((ZoznamHodín[DEŇ]=RozvrhHodín[[#Headers],[ŠTVRTOK]])*(ROUNDDOWN($B56,10)>=ROUNDDOWN(ZoznamHodín[ČAS ZAČATIA],10))*($B56<=ZoznamHodín[ČAS UKONČENIA]),ZoznamHodín[JEDINEČNÉ]),ZoznamHodín[JEDINEČNÉ],0),2),0)","v":0},{"$f":"IFERROR(INDEX(ZoznamHodín[],MATCH(SUMPRODUCT((ZoznamHodín[DEŇ]=RozvrhHodín[[#Headers],[PIATOK]])*(ROUNDDOWN($B56,10)>=ROUNDDOWN(ZoznamHodín[ČAS ZAČATIA],10))*($B56<=ZoznamHodín[ČAS UKONČENIA]),ZoznamHodín[JEDINEČNÉ]),ZoznamHodín[JEDINEČNÉ],0),2),0)","v":0},{"$f":"IFERROR(INDEX(ZoznamHodín[],MATCH(SUMPRODUCT((ZoznamHodín[DEŇ]=RozvrhHodín[[#Headers],[SOBOTA]])*(ROUNDDOWN($B56,10)>=ROUNDDOWN(ZoznamHodín[ČAS ZAČATIA],10))*($B56<=ZoznamHodín[ČAS UKONČENIA]),ZoznamHodín[JEDINEČNÉ]),ZoznamHodín[JEDINEČNÉ],0),2),0)","v":0}]

{"sheet":"Zoznam hodín","index":1,"n_rows":10,"n_cols":8,"rows_kept":10,"merged":[[0,1,0,5],[0,6,0,7]]}
[null,"ZOZNAM HODÍN",{"$nulls":4},"Rozvrh hodín"]
[null,"HODINA","ID","DEŇ","MIESTO","ČAS ZAČATIA","ČAS UKONČENIA","JEDINEČNÉ"]
[null,"Technické písanie","PS-121","PONDELOK","Budova A","13:00:00","14:00:00",{"$f":"ROW()-ROW(ZoznamHodín[[#Headers],[JEDINEČNÉ]])","v":1}]
[null,"Technické písanie","PS-121","STREDA","Budova A","13:00:00","14:00:00",{"$f":"ROW()-ROW(ZoznamHodín[[#Headers],[JEDINEČNÉ]])","v":2}]
[null,"Verejný prejav","VP-111","PONDELOK","Budova B","16:00:00","17:00:00",{"$f":"ROW()-ROW(ZoznamHodín[[#Headers],[JEDINEČNÉ]])","v":3}]
[null,"Zdravie a fitnes","ZAF-295","UTOROK","Budova B","11:00:00","12:00:00",{"$f":"ROW()-ROW(ZoznamHodín[[#Headers],[JEDINEČNÉ]])","v":4}]
[null,"Zdravie a fitnes","ZAF-295","ŠTVRTOK","Budova B","11:00:00","12:00:00",{"$f":"ROW()-ROW(ZoznamHodín[[#Headers],[JEDINEČNÉ]])","v":5}]
[null,"Algebra","MAT-113","PONDELOK","Budova C","08:10:00","09:15:00",{"$f":"ROW()-ROW(ZoznamHodín[[#Headers],[JEDINEČNÉ]])","v":6}]
[null,"Algebra","MAT-113","STREDA","Budova C","08:10:00","09:15:00",{"$f":"ROW()-ROW(ZoznamHodín[[#Headers],[JEDINEČNÉ]])","v":7}]
[null,"Algebra","MAT-113","PIATOK","Budova C","08:10:00","09:15:00",{"$f":"ROW()-ROW(ZoznamHodín[[#Headers],[JEDINEČNÉ]])","v":8}]